{"text_format":"1","workbook":"xlsx","n_sheets":2,"sheets":["Data","bill"],"not_rendered":{"charts":0,"images":0,"macros":1,"external_links":1,"defined_names":3,"comments":0,"pivot_tables":0},"unopened":[],"bounds":{"document_bytes":16777216,"sheet_cells":100000,"rows_first":2000,"rows_last":500,"rows_between":2000,"halvings":0,"cell_chars":16384,"cell_head_chars":4096},"cells_cut":0,"cells_raw":0,"read":"whole","date_system":"1900"}

{"sheet":"Data","index":0,"n_rows":2049,"n_cols":255,"rows_kept":2049,"cut":false,"hidden":false,"merged":[[3,0,3,1],[3,2,3,3],[3,11,3,12]]}
[1,2,3,4,5,6,7,8,9,10,11,12,13,14,15,16,17]
[]
[]
[]
["م","عمود2","عمود4","عمود5","عمود6","عمود7","عمود8","عمود9","عمود10","عمود11","عمود12","عمود13","عمود14","عمود15","عمود16","عمود17","عمود18","عمود19","عمود20","عمود21","عمود22","عمود23","عمود24","عمود25","عمود26","عمود27","عمود28","عمود29","عمود30","عمود31","عمود32","عمود33","عمود34","عمود35","عمود36","عمود37","عمود38","عمود39","عمود40","عمود41","عمود42","عمود43","عمود44","عمود45","عمود46","عمود47","عمود48","عمود49","عمود50","عمود51","عمود52","عمود53","عمود54","عمود55","عمود56","عمود57","عمود58","عمود59","عمود60","عمود61","عمود62","عمود63","عمود64","عمود65","عمود66","عمود67","عمود68","عمود69","عمود70","عمود71","عمود72","عمود73","عمود74","عمود75","عمود76","عمود77","عمود78","عمود79","عمود80","عمود81","عمود82","عمود83","عمود84","عمود85","عمود86","عمود87","عمود88","عمود89","عمود90","عمود91","عمود92","عمود93","عمود94","عمود95","عمود96","عمود97","عمود98","عمود99","عمود100","عمود101","عمود102","عمود103","عمود104","عمود105","عمود106","عمود107","عمود108","عمود109","عمود110","عمود111","عمود112","عمود113","عمود114","عمود115","عمود116","عمود117","عمود118","عمود119","عمود120","عمود121","عمود122","عمود123","عمود124","عمود125","عمود126","عمود127","عمود128","عمود129","عمود130","عمود131","عمود132","عمود133","عمود134","عمود135","عمود136","عمود137","عمود138","عمود139","عمود140","عمود141","عمود142","عمود143","عمود144","عمود145","عمود146","عمود147","عمود148","عمود149","عمود150","عمود151","عمود152","عمود153","عمود154","عمود155","عمود156","عمود157","عمود158","عمود159","عمود160","عمود161","عمود162","عمود163","عمود164","عمود165","عمود166","عمود167","عمود168","عمود169","عمود170","عمود171","عمود172","عمود173","عمود174","عمود175","عمود176","عمود177","عمود178","عمود179","عمود180","عمود181","عمود182","عمود183","عمود184","عمود185","عمود186","عمود187","عمود188","عمود189","عمود190","عمود191","عمود192","عمود193","عمود194","عمود195","عمود196","عمود197","عمود198","عمود199","عمود200","عمود201","عمود202","عمود203","عمود204","عمود205","عمود206","عمود207","عمود208","عمود209","عمود210","عمود211","عمود212","عمود213","عمود214","عمود215","عمود216","عمود217","عمود218","عمود219","عمود220","عمود221","عمود222","عمود223","عمود224","عمود225","عمود226","عمود227","عمود228","عمود229","عمود230","عمود231","عمود232","عمود233","عمود234","عمود235","عمود236","عمود237","عمود238","عمود239","عمود240","عمود241","عمود242","عمود243","عمود244","عمود245","عمود246","عمود247","عمود248","عمود249","عمود250","عمود251","عمود252","عمود253","عمود254","عمود255","عمود256"]
["م","Bilnumret","företag ","tjänsten","DATUM","Column1","Antal"," Priset ","Totalt ","MOMS",null,"den totala","Column3","ملاحظـــات"]
["*","رقم السيارة","الشركة","الخدمة","التاريخ",null,"العدد",null,"المجموع","Procent","värde","المجموع",null,null,null,null,"from date"]
[1,"nbf-445","wills","selver","22/10/2016",null,1,250,{"$f":"IF(B8>\"\",G8*H8,\"\")","v":250},null,{"$f":"IF(B8>\"\",I8*J8,\"\")","v":0},{"$f":"IF(B8>\"\",I8+K8,\"\")","v":250},null,null,null,null,"to date"]
[2,"lkj-215","ledel","heltvet","22/10/2016",null,1,299,{"$f":"IF(B9>\"\",G9*H9,\"\")","v":299},null,{"$f":"IF(B9>\"\",I9*J9,\"\")","v":0},{"$f":"IF(B9>\"\",I9+K9,\"\")","v":299},null,null,null,null,"     الشركة"]
[3,"yut-583","ledel","minracond","24/10/2016",null,1,379,{"$f":"IF(B10>\"\",G10*H10,\"\")","v":379},null,{"$f":"IF(B10>\"\",I10*J10,\"\")","v":0},{"$f":"IF(B10>\"\",I10+K10,\"\")","v":379}]
[4,"lkm-527","wills","minracond","25/10/2016",null,1,379,379,null,0,379]
[5,"mnv-472","ledel","heltvet","27/10/2016",null,1,299,299,null,0,299]
[null,null,null,null,null,null,null,null,"",null,"",""]
[null,null,null,null,null,null,null,null,"",null,"",""]
[null,null,null,null,null,null,null,null,"",null,"",""]
[null,null,null,null,null,null,null,null,"",null,"",""]
[null,null,null,null,null,null,null,null,"",null,"",""]
[null,null,null,null,null,null,null,null,"",null,"",""]
[null,null,null,null,null,null,null,null,"",null,"",""]
[null,null,null,null,null,null,null,null,"",null,"",""]
[null,null,null,null,null,null,null,null,"",null,"",""]
[null,null,null,null,null,null,null,null,"",null,"",""]
[null,null,null,null,null,null,null,null,"",null,"",""]
[null,null,null,null,null,null,null,null,"",null,"",""]
[null,null,null,null,null,null,null,null,"",null,"",""]
[null,null,null,null,null,null,null,null,"",null,"",""]
[null,null,null,null,null,null,null,null,"",null,"",""]
[null,null,null,null,null,null,null,null,"",null,"",""]
[null,null,null,null,null,null,null,null,"",null,"",""]
[null,null,null,null,null,null,null,null,"",null,"",""]
[null,null,null,null,null,null,null,null,"",null,"",""]
[null,null,null,null,null,null,null,null,"",null,"",""]
[null,null,null,null,null,null,null,null,"",null,"",""]
[null,null,null,null,null,null,null,null,"",null,"",""]
[null,null,null,null,null,null,null,null,"",null,"",""]
[null,null,null,null,null,null,null,null,"",null,"",""]
[null,null,null,null,null,null,null,null,"",null,"",""]
[null,null,null,null,null,null,null,null,"",null,"",""]
[null,null,null,null,null,null,null,null,"",null,"",""]
[null,null,null,null,null,null,null,null,"",null,"",""]
[null,null,null,null,null,null,null,null,"",null,"",""]
[null,null,null,null,null,null,null,null,"",null,"",""]
[null,null,null,null,null,null,null,null,"",null,"",""]
[null,null,null,null,null,null,null,null,"",null,"",""]
[null,null,null,null,null,null,null,null,"",null,"",""]
[null,null,null,null,null,null,null,null,"",null,"",""]
[null,null,null,null,null,null,null,null,"",null,"",""]
[null,null,null,null,null,null,null,null,"",null,"",""]
[null,null,null,null,null,null,null,null,"",null,"",""]
[null,null,null,null,null,null,null,null,"",null,"",""]
[null,null,null,null,null,null,null,null,"",null,"",""]
[null,null,null,null,null,null,null,null,"",null,"",""]
[null,null,null,null,null,null,null,null,"",null,"",""]
[null,null,null,null,null,null,null,null,"",null,"",""]
[null,null,null,null,null,null,null,null,"",null,"",""]
[null,null,null,null,null,null,null,null,"",null,"",""]
[null,null,null,null,null,null,null,null,"",null,"",""]
[null,null,null,null,null,null,null,null,"",null,"",""]
[null,null,null,null,null,null,null,null,"",null,"",""]
[null,null,null,null,null,null,null,null,"",null,"",""]
[null,null,null,null,null,null,null,null,"",null,"",""]
[null,null,null,null,null,null,null,null,"",null,"",""]
[null,null,null,null,null,null,null,null,"",null,"",""]
[null,null,null,null,null,null,null,null,"",null,"",""]
[null,null,null,null,null,null,null,null,"",null,"",""]
[null,null,null,null,null,null,null,null,"",null,"",""]
[null,null,null,null,null,null,null,null,"",null,"",""]
[null,null,null,null,null,null,null,null,"",null,"",""]
[null,null,null,null,null,null,null,null,"",null,"",""]
[null,null,null,null,null,null,null,null,"",null,"",""]
[null,null,null,null,null,null,null,null,"",null,"",""]
[null,null,null,null,null,null,null,null,"",null,"",""]
[null,null,null,null,null,null,null,null,"",null,"",""]
[null,null,null,null,null,null,null,null,{"$f":"IF(B74>\"\",G74*H74,\"\")","v":""},null,{"$f":"IF(B74>\"\",I74*J74,\"\")","v":""},{"$f":"IF(B74>\"\",I74+K74,\"\")","v":""}]
[null,null,null,null,null,null,null,null,"",null,"",""]
[null,null,null,null,null,null,null,null,"",null,"",""]
[null,null,null,null,null,null,null,null,"",null,"",""]
[null,null,null,null,null,null,null,null,"",null,"",""]
[null,null,null,null,null,null,null,null,"",null,"",""]
[null,null,null,null,null,null,null,null,"",null,"",""]
[null,null,null,null,null,null,null,null,"",null,"",""]
[null,null,null,null,null,null,null,null,"",null,"",""]
[null,null,null,null,null,null,null,null,"",null,"",""]
[null,null,null,null,null,null,null,null,"",null,"",""]
[null,null,null,null,null,null,null,null,"",null,"",""]
[null,null,null,null,null,null,null,null,"",null,"",""]
[null,null,null,null,null,null,null,null,"",null,"",""]
[null,null,null,null,null,null,null,null,"",null,"",""]
[null,null,null,null,null,null,null,null,"",null,"",""]
[null,null,null,null,null,null,null,null,"",null,"",""]
[null,null,null,null,null,null,null,null,"",null,"",""]
[null,null,null,null,null,null,null,null,"",null,"",""]
[null,null,null,null,null,null,null,null,"",null,"",""]
[null,null,null,null,null,null,null,null,"",null,"",""]
[null,null,null,null,null,null,null,null,"",null,"",""]
[null,null,null,null,null,null,null,null,"",null,"",""]
[null,null,null,null,null,null,null,null,"",null,"",""]
[null,null,null,null,null,null,null,null,"",null,"",""]
[null,null,null,null,null,null,null,null,"",null,"",""]
[null,null,null,null,null,null,null,null,"",null,"",""]
[null,null,null,null,null,null,null,null,"",null,"",""]
[null,null,null,null,null,null,null,null,"",null,"",""]
[null,null,null,null,null,null,null,null,"",null,"",""]
[null,null,null,null,null,null,null,null,"",null,"",""]
[null,null,null,null,null,null,null,null,"",null,"",""]
[null,null,null,null,null,null,null,null,"",null,"",""]
[null,null,null,null,null,null,null,null,"",null,"",""]
[null,null,null,null,null,null,null,null,"",null,"",""]
[null,null,null,null,null,null,null,null,"",null,"",""]
[null,null,null,null,null,null,null,null,"",null,"",""]
[null,null,null,null,null,null,null,null,"",null,"",""]
[null,null,null,null,null,null,null,null,"",null,"",""]
[null,null,null,null,null,null,null,null,"",null,"",""]
[null,null,null,null,null,null,null,null,"",null,"",""]
[null,null,null,null,null,null,null,null,"",null,"",""]
[null,null,null,null,null,null,null,null,"",null,"",""]
[null,null,null,null,null,null,null,null,"",null,"",""]
[null,null,null,null,null,null,null,null,"",null,"",""]
[null,null,null,null,null,null,null,null,"",null,"",""]
[null,null,null,null,null,null,null,null,"",null,"",""]
[null,null,null,null,null,null,null,null,"",null,"",""]
[null,null,null,null,null,null,null,null,"",null,"",""]
[null,null,null,null,null,null,null,null,"",null,"",""]
[null,null,null,null,null,null,null,null,"",null,"",""]
[null,null,null,null,null,null,null,null,"",null,"",""]
[null,null,null,null,null,null,null,null,"",null,"",""]
[null,null,null,null,null,null,null,null,"",null,"",""]
[null,null,null,null,null,null,null,null,"",null,"",""]
[null,null,null,null,null,null,null,null,"",null,"",""]
[null,null,null,null,null,null,null,null,"",null,"",""]
[null,null,null,null,null,null,null,null,"",null,"",""]
[null,null,null,null,null,null,null,null,"",null,"",""]
[null,null,null,null,null,null,null,null,"",null,"",""]
[null,null,null,null,null,null,null,null,"",null,"",""]
[null,null,null,null,null,null,null,null,"",null,"",""]
[null,null,null,null,null,null,null,null,"",null,"",""]
[null,null,null,null,null,null,null,null,"",null,"",""]
[null,null,null,null,null,null,null,null,{"$f":"IF(B138>\"\",G138*H138,\"\")","v":""},null,{"$f":"IF(B138>\"\",I138*J138,\"\")","v":""},{"$f":"IF(B138>\"\",I138+K138,\"\")","v":""}]
[null,null,null,null,null,null,null,null,"",null,"",""]
[null,null,null,null,null,null,null,null,"",null,"",""]
[null,null,null,null,null,null,null,null,"",null,"",""]
[null,null,null,null,null,null,null,null,"",null,"",""]
[null,null,null,null,null,null,null,null,"",null,"",""]
[null,null,null,null,null,null,null,null,"",null,"",""]
[null,null,null,null,null,null,null,null,"",null,"",""]
[null,null,null,null,null,null,null,null,"",null,"",""]
[null,null,null,null,null,null,null,null,"",null,"",""]
[null,null,null,null,null,null,null,null,"",null,"",""]
[null,null,null,null,null,null,null,null,"",null,"",""]
[null,null,null,null,null,null,null,null,"",null,"",""]
[null,null,null,null,null,null,null,null,"",null,"",""]
[null,null,null,null,null,null,null,null,"",null,"",""]
[null,null,null,null,null,null,null,null,"",null,"",""]
[null,null,null,null,null,null,null,null,"",null,"",""]
[null,null,null,null,null,null,null,null,"",null,"",""]
[null,null,null,null,null,null,null,null,"",null,"",""]
[null,null,null,null,null,null,null,null,"",null,"",""]
[null,null,null,null,null,null,null,null,"",null,"",""]
[null,null,null,null,null,null,null,null,"",null,"",""]
[null,null,null,null,null,null,null,null,"",null,"",""]
[null,null,null,null,null,null,null,null,"",null,"",""]
[null,null,null,null,null,null,null,null,"",null,"",""]
[null,null,null,null,null,null,null,null,"",null,"",""]
[null,null,null,null,null,null,null,null,"",null,"",""]
[null,null,null,null,null,null,null,null,"",null,"",""]
[null,null,null,null,null,null,null,null,"",null,"",""]
[null,null,null,null,null,null,null,null,"",null,"",""]
[null,null,null,null,null,null,null,null,"",null,"",""]
[null,null,null,null,null,null,null,null,"",null,"",""]
[null,null,null,null,null,null,null,null,"",null,"",""]
[null,null,null,null,null,null,null,null,"",null,"",""]
[null,null,null,null,null,null,null,null,"",null,"",""]
[null,null,null,null,null,null,null,null,"",null,"",""]
[null,null,null,null,null,null,null,null,"",null,"",""]
[null,null,null,null,null,null,null,null,"",null,"",""]
[null,null,null,null,null,null,null,null,"",null,"",""]
[null,null,null,null,null,null,null,null,"",null,"",""]
[null,null,null,null,null,null,null,null,"",null,"",""]
[null,null,null,null,null,null,null,null,"",null,"",""]
[null,null,null,null,null,null,null,null,"",null,"",""]
[null,null,null,null,null,null,null,null,"",null,"",""]
[null,null,null,null,null,null,null,null,"",null,"",""]
[null,null,null,null,null,null,null,null,"",null,"",""]
[null,null,null,null,null,null,null,null,"",null,"",""]
[null,null,null,null,null,null,null,null,"",null,"",""]
[null,null,null,null,null,null,null,null,"",null,"",""]
[null,null,null,null,null,null,null,null,"",null,"",""]
[null,null,null,null,null,null,null,null,"",null,"",""]
[null,null,null,null,null,null,null,null,"",null,"",""]
[null,null,null,null,null,null,null,null,"",null,"",""]
[null,null,null,null,null,null,null,null,"",null,"",""]
[null,null,null,null,null,null,null,null,"",null,"",""]
[null,null,null,null,null,null,null,null,"",null,"",""]
[null,null,null,null,null,null,null,null,"",null,"",""]
[null,null,null,null,null,null,null,null,"",null,"",""]
[null,null,null,null,null,null,null,null,"",null,"",""]
[null,null,null,null,null,null,null,null,"",null,"",""]
[null,null,null,null,null,null,null,null,"",null,"",""]
[null,null,null,null,null,null,null,null,"",null,"",""]
[null,null,null,null,null,null,null,null,"",null,"",""]
[null,null,null,null,null,null,null,null,"",null,"",""]
[null,null,null,null,null,null,null,null,{"$f":"IF(B202>\"\",G202*H202,\"\")","v":""},null,{"$f":"IF(B202>\"\",I202*J202,\"\")","v":""},{"$f":"IF(B202>\"\",I202+K202,\"\")","v":""}]
[null,null,null,null,null,null,null,null,"",null,"",""]
[null,null,null,null,null,null,null,null,"",null,"",""]
[null,null,null,null,null,null,null,null,"",null,"",""]
[null,null,null,null,null,null,null,null,"",null,"",""]
[null,null,null,null,null,null,null,null,"",null,"",""]
[null,null,null,null,null,null,null,null,"",null,"",""]
[null,null,null,null,null,null,null,null,"",null,"",""]
[null,null,null,null,null,null,null,null,"",null,"",""]
[null,null,null,null,null,null,null,null,"",null,"",""]
[null,null,null,null,null,null,null,null,"",null,"",""]
[null,null,null,null,null,null,null,null,"",null,"",""]
[null,null,null,null,null,null,null,null,"",null,"",""]
[null,null,null,null,null,null,null,null,"",null,"",""]
[null,null,null,null,null,null,null,null,"",null,"",""]
[null,null,null,null,null,null,null,null,"",null,"",""]
[null,null,null,null,null,null,null,null,"",null,"",""]
[null,null,null,null,null,null,null,null,"",null,"",""]
[null,null,null,null,null,null,null,null,"",null,"",""]
[null,null,null,null,null,null,null,null,"",null,"",""]
[null,null,null,null,null,null,null,null,"",null,"",""]
[null,null,null,null,null,null,null,null,"",null,"",""]
[null,null,null,null,null,null,null,null,"",null,"",""]
[null,null,null,null,null,null,null,null,"",null,"",""]
[null,null,null,null,null,null,null,null,"",null,"",""]
[null,null,null,null,null,null,null,null,"",null,"",""]
[null,null,null,null,null,null,null,null,"",null,"",""]
[null,null,null,null,null,null,null,null,"",null,"",""]
[null,null,null,null,null,null,null,null,"",null,"",""]
[null,null,null,null,null,null,null,null,"",null,"",""]
[null,null,null,null,null,null,null,null,"",null,"",""]
[null,null,null,null,null,null,null,null,"",null,"",""]
[null,null,null,null,null,null,null,null,"",null,"",""]
[null,null,null,null,null,null,null,null,"",null,"",""]
[null,null,null,null,null,null,null,null,"",null,"",""]
[null,null,null,null,null,null,null,null,"",null,"",""]
[null,null,null,null,null,null,null,null,"",null,"",""]
[null,null,null,null,null,null,null,null,"",null,"",""]
[null,null,null,null,null,null,null,null,"",null,"",""]
[null,null,null,null,null,null,null,null,"",null,"",""]
[null,null,null,null,null,null,null,null,"",null,"",""]
[null,null,null,null,null,null,null,null,"",null,"",""]
[null,null,null,null,null,null,null,null,"",null,"",""]
[null,null,null,null,null,null,null,null,"",null,"",""]
[null,null,null,null,null,null,null,null,"",null,"",""]
[null,null,null,null,null,null,null,null,"",null,"",""]
[null,null,null,null,null,null,null,null,"",null,"",""]
[null,null,null,null,null,null,null,null,"",null,"",""]
[null,null,null,null,null,null,null,null,"",null,"",""]
[null,null,null,null,null,null,null,null,"",null,"",""]
[null,null,null,null,null,null,null,null,"",null,"",""]
[null,null,null,null,null,null,null,null,"",null,"",""]
[null,null,null,null,null,null,null,null,"",null,"",""]
[null,null,null,null,null,null,null,null,"",null,"",""]
[null,null,null,null,null,null,null,null,"",null,"",""]
[null,null,null,null,null,null,null,null,"",null,"",""]
[null,null,null,null,null,null,null,null,"",null,"",""]
[null,null,null,null,null,null,null,null,"",null,"",""]
[null,null,null,null,null,null,null,null,"",null,"",""]
[null,null,null,null,null,null,null,null,"",null,"",""]
[null,null,null,null,null,null,null,null,"",null,"",""]
[null,null,null,null,null,null,null,null,"",null,"",""]
[null,null,null,null,null,null,null,null,"",null,"",""]
[null,null,null,null,null,null,null,null,"",null,"",""]
[null,null,null,null,null,null,null,null,{"$f":"IF(B266>\"\",G266*H266,\"\")","v":""},null,{"$f":"IF(B266>\"\",I266*J266,\"\")","v":""},{"$f":"IF(B266>\"\",I266+K266,\"\")","v":""}]
[null,null,null,null,null,null,null,null,"",null,"",""]
[null,null,null,null,null,null,null,null,"",null,"",""]
[null,null,null,null,null,null,null,null,"",null,"",""]
[null,null,null,null,null,null,null,null,"",null,"",""]
[null,null,null,null,null,null,null,null,"",null,"",""]
[null,null,null,null,null,null,null,null,"",null,"",""]
[null,null,null,null,null,null,null,null,"",null,"",""]
[null,null,null,null,null,null,null,null,"",null,"",""]
[null,null,null,null,null,null,null,null,"",null,"",""]
[null,null,null,null,null,null,null,null,"",null,"",""]
[null,null,null,null,null,null,null,null,"",null,"",""]
[null,null,null,null,null,null,null,null,"",null,"",""]
[null,null,null,null,null,null,null,null,"",null,"",""]
[null,null,null,null,null,null,null,null,"",null,"",""]
[null,null,null,null,null,null,null,null,"",null,"",""]
[null,null,null,null,null,null,null,null,"",null,"",""]
[null,null,null,null,null,null,null,null,"",null,"",""]
[null,null,null,null,null,null,null,null,"",null,"",""]
[null,null,null,null,null,null,null,null,"",null,"",""]
[null,null,null,null,null,null,null,null,"",null,"",""]
[null,null,null,null,null,null,null,null,"",null,"",""]
[null,null,null,null,null,null,null,null,"",null,"",""]
[null,null,null,null,null,null,null,null,"",null,"",""]
[null,null,null,null,null,null,null,null,"",null,"",""]
[null,null,null,null,null,null,null,null,"",null,"",""]
[null,null,null,null,null,null,null,null,"",null,"",""]
[null,null,null,null,null,null,null,null,"",null,"",""]
[null,null,null,null,null,null,null,null,"",null,"",""]
[null,null,null,null,null,null,null,null,"",null,"",""]
[null,null,null,null,null,null,null,null,"",null,"",""]
[null,null,null,null,null,null,null,null,"",null,"",""]
[null,null,null,null,null,null,null,null,"",null,"",""]
[null,null,null,null,null,null,null,null,"",null,"",""]
[null,null,null,null,null,null,null,null,"",null,"",""]
[null,null,null,null,null,null,null,null,"",null,"",""]
[null,null,null,null,null,null,null,null,"",null,"",""]
[null,null,null,null,null,null,null,null,"",null,"",""]
[null,null,null,null,null,null,null,null,"",null,"",""]
[null,null,null,null,null,null,null,null,"",null,"",""]
[null,null,null,null,null,null,null,null,"",null,"",""]
[null,null,null,null,null,null,null,null,"",null,"",""]
[null,null,null,null,null,null,null,null,"",null,"",""]
[null,null,null,null,null,null,null,null,"",null,"",""]
[null,null,null,null,null,null,null,null,"",null,"",""]
[null,null,null,null,null,null,null,null,"",null,"",""]
[null,null,null,null,null,null,null,null,"",null,"",""]
[null,null,null,null,null,null,null,null,"",null,"",""]
[null,null,null,null,null,null,null,null,"",null,"",""]
[null,null,null,null,null,null,null,null,"",null,"",""]
[null,null,null,null,null,null,null,null,"",null,"",""]
[null,null,null,null,null,null,null,null,"",null,"",""]
[null,null,null,null,null,null,null,null,"",null,"",""]
[null,null,null,null,null,null,null,null,"",null,"",""]
[null,null,null,null,null,null,null,null,"",null,"",""]
[null,null,null,null,null,null,null,null,"",null,"",""]
[null,null,null,null,null,null,null,null,"",null,"",""]
[null,null,null,null,null,null,null,null,"",null,"",""]
[null,null,null,null,null,null,null,null,"",null,"",""]
[null,null,null,null,null,null,null,null,"",null,"",""]
[null,null,null,null,null,null,null,null,"",null,"",""]
[null,null,null,null,null,null,null,null,"",null,"",""]
[null,null,null,null,null,null,null,null,"",null,"",""]
[null,null,null,null,null,null,null,null,"",null,"",""]
[null,null,null,null,null,null,null,null,{"$f":"IF(B330>\"\",G330*H330,\"\")","v":""},null,{"$f":"IF(B330>\"\",I330*J330,\"\")","v":""},{"$f":"IF(B330>\"\",I330+K330,\"\")","v":""}]
[null,null,null,null,null,null,null,null,"",null,"",""]
[null,null,null,null,null,null,null,null,"",null,"",""]
[null,null,null,null,null,null,null,null,"",null,"",""]
[null,null,null,null,null,null,null,null,"",null,"",""]
[null,null,null,null,null,null,null,null,"",null,"",""]
[null,null,null,null,null,null,null,null,"",null,"",""]
[null,null,null,null,null,null,null,null,"",null,"",""]
[null,null,null,null,null,null,null,null,"",null,"",""]
[null,null,null,null,null,null,null,null,"",null,"",""]
[null,null,null,null,null,null,null,null,"",null,"",""]
[null,null,null,null,null,null,null,null,"",null,"",""]
[null,null,null,null,null,null,null,null,"",null,"",""]
[null,null,null,null,null,null,null,null,"",null,"",""]
[null,null,null,null,null,null,null,null,"",null,"",""]
[null,null,null,null,null,null,null,null,"",null,"",""]
[null,null,null,null,null,null,null,null,"",null,"",""]
[null,null,null,null,null,null,null,null,"",null,"",""]
[null,null,null,null,null,null,null,null,"",null,"",""]
[null,null,null,null,null,null,null,null,"",null,"",""]
[null,null,null,null,null,null,null,null,"",null,"",""]
[null,null,null,null,null,null,null,null,"",null,"",""]
[null,null,null,null,null,null,null,null,"",null,"",""]
[null,null,null,null,null,null,null,null,"",null,"",""]
[null,null,null,null,null,null,null,null,"",null,"",""]
[null,null,null,null,null,null,null,null,"",null,"",""]
[null,null,null,null,null,null,null,null,"",null,"",""]
[null,null,null,null,null,null,null,null,"",null,"",""]
[null,null,null,null,null,null,null,null,"",null,"",""]
[null,null,null,null,null,null,null,null,"",null,"",""]
[null,null,null,null,null,null,null,null,"",null,"",""]
[null,null,null,null,null,null,null,null,"",null,"",""]
[null,null,null,null,null,null,null,null,"",null,"",""]
[null,null,null,null,null,null,null,null,"",null,"",""]
[null,null,null,null,null,null,null,null,"",null,"",""]
[null,null,null,null,null,null,null,null,"",null,"",""]
[null,null,null,null,null,null,null,null,"",null,"",""]
[null,null,null,null,null,null,null,null,"",null,"",""]
[null,null,null,null,null,null,null,null,"",null,"",""]
[null,null,null,null,null,null,null,null,"",null,"",""]
[null,null,null,null,null,null,null,null,"",null,"",""]
[null,null,null,null,null,null,null,null,"",null,"",""]
[null,null,null,null,null,null,null,null,"",null,"",""]
[null,null,null,null,null,null,null,null,"",null,"",""]
[null,null,null,null,null,null,null,null,"",null,"",""]
[null,null,null,null,null,null,null,null,"",null,"",""]
[null,null,null,null,null,null,null,null,"",null,"",""]
[null,null,null,null,null,null,null,null,"",null,"",""]
[null,null,null,null,null,null,null,null,"",null,"",""]
[null,null,null,null,null,null,null,null,"",null,"",""]
[null,null,null,null,null,null,null,null,"",null,"",""]
[null,null,null,null,null,null,null,null,"",null,"",""]
[null,null,null,null,null,null,null,null,"",null,"",""]
[null,null,null,null,null,null,null,null,"",null,"",""]
[null,null,null,null,null,null,null,null,"",null,"",""]
[null,null,null,null,null,null,null,null,"",null,"",""]
[null,null,null,null,null,null,null,null,"",null,"",""]
[null,null,null,null,null,null,null,null,"",null,"",""]
[null,null,null,null,null,null,null,null,"",null,"",""]
[null,null,null,null,null,null,null,null,"",null,"",""]
[null,null,null,null,null,null,null,null,"",null,"",""]
[null,null,null,null,null,null,null,null,"",null,"",""]
[null,null,null,null,null,null,null,null,"",null,"",""]
[null,null,null,null,null,null,null,null,"",null,"",""]
[null,null,null,null,null,null,null,null,{"$f":"IF(B394>\"\",G394*H394,\"\")","v":""},null,{"$f":"IF(B394>\"\",I394*J394,\"\")","v":""},{"$f":"IF(B394>\"\",I394+K394,\"\")","v":""}]
[null,null,null,null,null,null,null,null,"",null,"",""]
[null,null,null,null,null,null,null,null,"",null,"",""]
[null,null,null,null,null,null,null,null,"",null,"",""]
[null,null,null,null,null,null,null,null,"",null,"",""]
[null,null,null,null,null,null,null,null,"",null,"",""]
[null,null,null,null,null,null,null,null,"",null,"",""]
[null,null,null,null,null,null,null,null,"",null,"",""]
[null,null,null,null,null,null,null,null,"",null,"",""]
[null,null,null,null,null,null,null,null,"",null,"",""]
[null,null,null,null,null,null,null,null,"",null,"",""]
[null,null,null,null,null,null,null,null,"",null,"",""]
[null,null,null,null,null,null,null,null,"",null,"",""]
[null,null,null,null,null,null,null,null,"",null,"",""]
[null,null,null,null,null,null,null,null,"",null,"",""]
[null,null,null,null,null,null,null,null,"",null,"",""]
[null,null,null,null,null,null,null,null,"",null,"",""]
[null,null,null,null,null,null,null,null,"",null,"",""]
[null,null,null,null,null,null,null,null,"",null,"",""]
[null,null,null,null,null,null,null,null,"",null,"",""]
[null,null,null,null,null,null,null,null,"",null,"",""]
[null,null,null,null,null,null,null,null,"",null,"",""]
[null,null,null,null,null,null,null,null,"",null,"",""]
[null,null,null,null,null,null,null,null,"",null,"",""]
[null,null,null,null,null,null,null,null,"",null,"",""]
[null,null,null,null,null,null,null,null,"",null,"",""]
[null,null,null,null,null,null,null,null,"",null,"",""]
[null,null,null,null,null,null,null,null,"",null,"",""]
[null,null,null,null,null,null,null,null,"",null,"",""]
[null,null,null,null,null,null,null,null,"",null,"",""]
[null,null,null,null,null,null,null,null,"",null,"",""]
[null,null,null,null,null,null,null,null,"",null,"",""]
[null,null,null,null,null,null,null,null,"",null,"",""]
[null,null,null,null,null,null,null,null,"",null,"",""]
[null,null,null,null,null,null,null,null,"",null,"",""]
[null,null,null,null,null,null,null,null,"",null,"",""]
[null,null,null,null,null,null,null,null,"",null,"",""]
[null,null,null,null,null,null,null,null,"",null,"",""]
[null,null,null,null,null,null,null,null,"",null,"",""]
[null,null,null,null,null,null,null,null,"",null,"",""]
[null,null,null,null,null,null,null,null,"",null,"",""]
[null,null,null,null,null,null,null,null,"",null,"",""]
[null,null,null,null,null,null,null,null,"",null,"",""]
[null,null,null,null,null,null,null,null,"",null,"",""]
[null,null,null,null,null,null,null,null,"",null,"",""]
[null,null,null,null,null,null,null,null,"",null,"",""]
[null,null,null,null,null,null,null,null,"",null,"",""]
[null,null,null,null,null,null,null,null,"",null,"",""]
[null,null,null,null,null,null,null,null,"",null,"",""]
[null,null,null,null,null,null,null,null,"",null,"",""]
[null,null,null,null,null,null,null,null,"",null,"",""]
[null,null,null,null,null,null,null,null,"",null,"",""]
[null,null,null,null,null,null,null,null,"",null,"",""]
[null,null,null,null,null,null,null,null,"",null,"",""]
[null,null,null,null,null,null,null,null,"",null,"",""]
[null,null,null,null,null,null,null,null,"",null,"",""]
[null,null,null,null,null,null,null,null,"",null,"",""]
[null,null,null,null,null,null,null,null,"",null,"",""]
[null,null,null,null,null,null,null,null,"",null,"",""]
[null,null,null,null,null,null,null,null,"",null,"",""]
[null,null,null,null,null,null,null,null,"",null,"",""]
[null,null,null,null,null,null,null,null,"",null,"",""]
[null,null,null,null,null,null,null,null,"",null,"",""]
[null,null,null,null,null,null,null,null,"",null,"",""]
[null,null,null,null,null,null,null,null,{"$f":"IF(B458>\"\",G458*H458,\"\")","v":""},null,{"$f":"IF(B458>\"\",I458*J458,\"\")","v":""},{"$f":"IF(B458>\"\",I458+K458,\"\")","v":""}]
[null,null,null,null,null,null,null,null,"",null,"",""]
[null,null,null,null,null,null,null,null,"",null,"",""]
[null,null,null,null,null,null,null,null,"",null,"",""]
[null,null,null,null,null,null,null,null,"",null,"",""]
[null,null,null,null,null,null,null,null,"",null,"",""]
[null,null,null,null,null,null,null,null,"",null,"",""]
[null,null,null,null,null,null,null,null,"",null,"",""]
[null,null,null,null,null,null,null,null,"",null,"",""]
[null,null,null,null,null,null,null,null,"",null,"",""]
[null,null,null,null,null,null,null,null,"",null,"",""]
[null,null,null,null,null,null,null,null,"",null,"",""]
[null,null,null,null,null,null,null,null,"",null,"",""]
[null,null,null,null,null,null,null,null,"",null,"",""]
[null,null,null,null,null,null,null,null,"",null,"",""]
[null,null,null,null,null,null,null,null,"",null,"",""]
[null,null,null,null,null,null,null,null,"",null,"",""]
[null,null,null,null,null,null,null,null,"",null,"",""]
[null,null,null,null,null,null,null,null,"",null,"",""]
[null,null,null,null,null,null,null,null,"",null,"",""]
[null,null,null,null,null,null,null,null,"",null,"",""]
[null,null,null,null,null,null,null,null,"",null,"",""]
[null,null,null,null,null,null,null,null,"",null,"",""]
[null,null,null,null,null,null,null,null,"",null,"",""]
[null,null,null,null,null,null,null,null,"",null,"",""]
[null,null,null,null,null,null,null,null,"",null,"",""]
[null,null,null,null,null,null,null,null,"",null,"",""]
[null,null,null,null,null,null,null,null,"",null,"",""]
[null,null,null,null,null,null,null,null,"",null,"",""]
[null,null,null,null,null,null,null,null,"",null,"",""]
[null,null,null,null,null,null,null,null,"",null,"",""]
[null,null,null,null,null,null,null,null,"",null,"",""]
[null,null,null,null,null,null,null,null,"",null,"",""]
[null,null,null,null,null,null,null,null,"",null,"",""]
[null,null,null,null,null,null,null,null,"",null,"",""]
[null,null,null,null,null,null,null,null,"",null,"",""]
[null,null,null,null,null,null,null,null,"",null,"",""]
[null,null,null,null,null,null,null,null,"",null,"",""]
[null,null,null,null,null,null,null,null,"",null,"",""]
[null,null,null,null,null,null,null,null,"",null,"",""]
[null,null,null,null,null,null,null,null,"",null,"",""]
[null,null,null,null,null,null,null,null,"",null,"",""]
[null,null,null,null,null,null,null,null,"",null,"",""]
[null,null,null,null,null,null,null,null,"",null,"",""]
[null,null,null,null,null,null,null,null,"",null,"",""]
[null,null,null,null,null,null,null,null,"",null,"",""]
[null,null,null,null,null,null,null,null,"",null,"",""]
[null,null,null,null,null,null,null,null,"",null,"",""]
[null,null,null,null,null,null,null,null,"",null,"",""]
[null,null,null,null,null,null,null,null,"",null,"",""]
[null,null,null,null,null,null,null,null,"",null,"",""]
[null,null,null,null,null,null,null,null,"",null,"",""]
[null,null,null,null,null,null,null,null,"",null,"",""]
[null,null,null,null,null,null,null,null,"",null,"",""]
[null,null,null,null,null,null,null,null,"",null,"",""]
[null,null,null,null,null,null,null,null,"",null,"",""]
[null,null,null,null,null,null,null,null,"",null,"",""]
[null,null,null,null,null,null,null,null,"",null,"",""]
[null,null,null,null,null,null,null,null,"",null,"",""]
[null,null,null,null,null,null,null,null,"",null,"",""]
[null,null,null,null,null,null,null,null,"",null,"",""]
[null,null,null,null,null,null,null,null,"",null,"",""]
[null,null,null,null,null,null,null,null,"",null,"",""]
[null,null,null,null,null,null,null,null,"",null,"",""]
[null,null,null,null,null,null,null,null,{"$f":"IF(B522>\"\",G522*H522,\"\")","v":""},null,{"$f":"IF(B522>\"\",I522*J522,\"\")","v":""},{"$f":"IF(B522>\"\",I522+K522,\"\")","v":""}]
[null,null,null,null,null,null,null,null,"",null,"",""]
[null,null,null,null,null,null,null,null,"",null,"",""]
[null,null,null,null,null,null,null,null,"",null,"",""]
[null,null,null,null,null,null,null,null,"",null,"",""]
[null,null,null,null,null,null,null,null,"",null,"",""]
[null,null,null,null,null,null,null,null,"",null,"",""]
[null,null,null,null,null,null,null,null,"",null,"",""]
[null,null,null,null,null,null,null,null,"",null,"",""]
[null,null,null,null,null,null,null,null,"",null,"",""]
[null,null,null,null,null,null,null,null,"",null,"",""]
[null,null,null,null,null,null,null,null,"",null,"",""]
[null,null,null,null,null,null,null,null,"",null,"",""]
[null,null,null,null,null,null,null,null,"",null,"",""]
[null,null,null,null,null,null,null,null,"",null,"",""]
[null,null,null,null,null,null,null,null,"",null,"",""]
[null,null,null,null,null,null,null,null,"",null,"",""]
[null,null,null,null,null,null,null,null,"",null,"",""]
[null,null,null,null,null,null,null,null,"",null,"",""]
[null,null,null,null,null,null,null,null,"",null,"",""]
[null,null,null,null,null,null,null,null,"",null,"",""]
[null,null,null,null,null,null,null,null,"",null,"",""]
[null,null,null,null,null,null,null,null,"",null,"",""]
[null,null,null,null,null,null,null,null,"",null,"",""]
[null,null,null,null,null,null,null,null,"",null,"",""]
[null,null,null,null,null,null,null,null,"",null,"",""]
[null,null,null,null,null,null,null,null,"",null,"",""]
[null,null,null,null,null,null,null,null,"",null,"",""]
[null,null,null,null,null,null,null,null,"",null,"",""]
[null,null,null,null,null,null,null,null,"",null,"",""]
[null,null,null,null,null,null,null,null,"",null,"",""]
[null,null,null,null,null,null,null,null,"",null,"",""]
[null,null,null,null,null,null,null,null,"",null,"",""]
[null,null,null,null,null,null,null,null,"",null,"",""]
[null,null,null,null,null,null,null,null,"",null,"",""]
[null,null,null,null,null,null,null,null,"",null,"",""]
[null,null,null,null,null,null,null,null,"",null,"",""]
[null,null,null,null,null,null,null,null,"",null,"",""]
[null,null,null,null,null,null,null,null,"",null,"",""]
[null,null,null,null,null,null,null,null,"",null,"",""]
[null,null,null,null,null,null,null,null,"",null,"",""]
[null,null,null,null,null,null,null,null,"",null,"",""]
[null,null,null,null,null,null,null,null,"",null,"",""]
[null,null,null,null,null,null,null,null,"",null,"",""]
[null,null,null,null,null,null,null,null,"",null,"",""]
[null,null,null,null,null,null,null,null,"",null,"",""]
[null,null,null,null,null,null,null,null,"",null,"",""]
[null,null,null,null,null,null,null,null,"",null,"",""]
[null,null,null,null,null,null,null,null,"",null,"",""]
[null,null,null,null,null,null,null,null,"",null,"",""]
[null,null,null,null,null,null,null,null,"",null,"",""]
[null,null,null,null,null,null,null,null,"",null,"",""]
[null,null,null,null,null,null,null,null,"",null,"",""]
[null,null,null,null,null,null,null,null,"",null,"",""]
[null,null,null,null,null,null,null,null,"",null,"",""]
[null,null,null,null,null,null,null,null,"",null,"",""]
[null,null,null,null,null,null,null,null,"",null,"",""]
[null,null,null,null,null,null,null,null,"",null,"",""]
[null,null,null,null,null,null,null,null,"",null,"",""]
[null,null,null,null,null,null,null,null,"",null,"",""]
[null,null,null,null,null,null,null,null,"",null,"",""]
[null,null,null,null,null,null,null,null,"",null,"",""]
[null,null,null,null,null,null,null,null,"",null,"",""]
[null,null,null,null,null,null,null,null,"",null,"",""]
[null,null,null,null,null,null,null,null,{"$f":"IF(B586>\"\",G586*H586,\"\")","v":""},null,{"$f":"IF(B586>\"\",I586*J586,\"\")","v":""},{"$f":"IF(B586>\"\",I586+K586,\"\")","v":""}]
[null,null,null,null,null,null,null,null,"",null,"",""]
[null,null,null,null,null,null,null,null,"",null,"",""]
[null,null,null,null,null,null,null,null,"",null,"",""]
[null,null,null,null,null,null,null,null,"",null,"",""]
[null,null,null,null,null,null,null,null,"",null,"",""]
[null,null,null,null,null,null,null,null,"",null,"",""]
[null,null,null,null,null,null,null,null,"",null,"",""]
[null,null,null,null,null,null,null,null,"",null,"",""]
[null,null,null,null,null,null,null,null,"",null,"",""]
[null,null,null,null,null,null,null,null,"",null,"",""]
[null,null,null,null,null,null,null,null,"",null,"",""]
[null,null,null,null,null,null,null,null,"",null,"",""]
[null,null,null,null,null,null,null,null,"",null,"",""]
[null,null,null,null,null,null,null,null,"",null,"",""]
[null,null,null,null,null,null,null,null,"",null,"",""]
[null,null,null,null,null,null,null,null,"",null,"",""]
[null,null,null,null,null,null,null,null,"",null,"",""]
[null,null,null,null,null,null,null,null,"",null,"",""]
[null,null,null,null,null,null,null,null,"",null,"",""]
[null,null,null,null,null,null,null,null,"",null,"",""]
[null,null,null,null,null,null,null,null,"",null,"",""]
[null,null,null,null,null,null,null,null,"",null,"",""]
[null,null,null,null,null,null,null,null,"",null,"",""]
[null,null,null,null,null,null,null,null,"",null,"",""]
[null,null,null,null,null,null,null,null,"",null,"",""]
[null,null,null,null,null,null,null,null,"",null,"",""]
[null,null,null,null,null,null,null,null,"",null,"",""]
[null,null,null,null,null,null,null,null,"",null,"",""]
[null,null,null,null,null,null,null,null,"",null,"",""]
[null,null,null,null,null,null,null,null,"",null,"",""]
[null,null,null,null,null,null,null,null,"",null,"",""]
[null,null,null,null,null,null,null,null,"",null,"",""]
[null,null,null,null,null,null,null,null,"",null,"",""]
[null,null,null,null,null,null,null,null,"",null,"",""]
[null,null,null,null,null,null,null,null,"",null,"",""]
[null,null,null,null,null,null,null,null,"",null,"",""]
[null,null,null,null,null,null,null,null,"",null,"",""]
[null,null,null,null,null,null,null,null,"",null,"",""]
[null,null,null,null,null,null,null,null,"",null,"",""]
[null,null,null,null,null,null,null,null,"",null,"",""]
[null,null,null,null,null,null,null,null,"",null,"",""]
[null,null,null,null,null,null,null,null,"",null,"",""]
[null,null,null,null,null,null,null,null,"",null,"",""]
[null,null,null,null,null,null,null,null,"",null,"",""]
[null,null,null,null,null,null,null,null,"",null,"",""]
[null,null,null,null,null,null,null,null,"",null,"",""]
[null,null,null,null,null,null,null,null,"",null,"",""]
[null,null,null,null,null,null,null,null,"",null,"",""]
[null,null,null,null,null,null,null,null,"",null,"",""]
[null,null,null,null,null,null,null,null,"",null,"",""]
[null,null,null,null,null,null,null,null,"",null,"",""]
[null,null,null,null,null,null,null,null,"",null,"",""]
[null,null,null,null,null,null,null,null,"",null,"",""]
[null,null,null,null,null,null,null,null,"",null,"",""]
[null,null,null,null,null,null,null,null,"",null,"",""]
[null,null,null,null,null,null,null,null,"",null,"",""]
[null,null,null,null,null,null,null,null,"",null,"",""]
[null,null,null,null,null,null,null,null,"",null,"",""]
[null,null,null,null,null,null,null,null,"",null,"",""]
[null,null,null,null,null,null,null,null,"",null,"",""]
[null,null,null,null,null,null,null,null,"",null,"",""]
[null,null,null,null,null,null,null,null,"",null,"",""]
[null,null,null,null,null,null,null,null,"",null,"",""]
[null,null,null,null,null,null,null,null,{"$f":"IF(B650>\"\",G650*H650,\"\")","v":""},null,{"$f":"IF(B650>\"\",I650*J650,\"\")","v":""},{"$f":"IF(B650>\"\",I650+K650,\"\")","v":""}]
[null,null,null,null,null,null,null,null,"",null,"",""]
[null,null,null,null,null,null,null,null,"",null,"",""]
[null,null,null,null,null,null,null,null,"",null,"",""]
[null,null,null,null,null,null,null,null,"",null,"",""]
[null,null,null,null,null,null,null,null,"",null,"",""]
[null,null,null,null,null,null,null,null,"",null,"",""]
[null,null,null,null,null,null,null,null,"",null,"",""]
[null,null,null,null,null,null,null,null,"",null,"",""]
[null,null,null,null,null,null,null,null,"",null,"",""]
[null,null,null,null,null,null,null,null,"",null,"",""]
[null,null,null,null,null,null,null,null,"",null,"",""]
[null,null,null,null,null,null,null,null,"",null,"",""]
[null,null,null,null,null,null,null,null,"",null,"",""]
[null,null,null,null,null,null,null,null,"",null,"",""]
[null,null,null,null,null,null,null,null,"",null,"",""]
[null,null,null,null,null,null,null,null,"",null,"",""]
[null,null,null,null,null,null,null,null,"",null,"",""]
[null,null,null,null,null,null,null,null,"",null,"",""]
[null,null,null,null,null,null,null,null,"",null,"",""]
[null,null,null,null,null,null,null,null,"",null,"",""]
[null,null,null,null,null,null,null,null,"",null,"",""]
[null,null,null,null,null,null,null,null,"",null,"",""]
[null,null,null,null,null,null,null,null,"",null,"",""]
[null,null,null,null,null,null,null,null,"",null,"",""]
[null,null,null,null,null,null,null,null,"",null,"",""]
[null,null,null,null,null,null,null,null,"",null,"",""]
[null,null,null,null,null,null,null,null,"",null,"",""]
[null,null,null,null,null,null,null,null,"",null,"",""]
[null,null,null,null,null,null,null,null,"",null,"",""]
[null,null,null,null,null,null,null,null,"",null,"",""]
[null,null,null,null,null,null,null,null,"",null,"",""]
[null,null,null,null,null,null,null,null,"",null,"",""]
[null,null,null,null,null,null,null,null,"",null,"",""]
[null,null,null,null,null,null,null,null,"",null,"",""]
[null,null,null,null,null,null,null,null,"",null,"",""]
[null,null,null,null,null,null,null,null,"",null,"",""]
[null,null,null,null,null,null,null,null,"",null,"",""]
[null,null,null,null,null,null,null,null,"",null,"",""]
[null,null,null,null,null,null,null,null,"",null,"",""]
[null,null,null,null,null,null,null,null,"",null,"",""]
[null,null,null,null,null,null,null,null,"",null,"",""]
[null,null,null,null,null,null,null,null,"",null,"",""]
[null,null,null,null,null,null,null,null,"",null,"",""]
[null,null,null,null,null,null,null,null,"",null,"",""]
[null,null,null,null,null,null,null,null,"",null,"",""]
[null,null,null,null,null,null,null,null,"",null,"",""]
[null,null,null,null,null,null,null,null,"",null,"",""]
[null,null,null,null,null,null,null,null,"",null,"",""]
[null,null,null,null,null,null,null,null,"",null,"",""]
[null,null,null,null,null,null,null,null,"",null,"",""]
[null,null,null,null,null,null,null,null,"",null,"",""]
[null,null,null,null,null,null,null,null,"",null,"",""]
[null,null,null,null,null,null,null,null,"",null,"",""]
[null,null,null,null,null,null,null,null,"",null,"",""]
[null,null,null,null,null,null,null,null,"",null,"",""]
[null,null,null,null,null,null,null,null,"",null,"",""]
[null,null,null,null,null,null,null,null,"",null,"",""]
[null,null,null,null,null,null,null,null,"",null,"",""]
[null,null,null,null,null,null,null,null,"",null,"",""]
[null,null,null,null,null,null,null,null,"",null,"",""]
[null,null,null,null,null,null,null,null,"",null,"",""]
[null,null,null,null,null,null,null,null,"",null,"",""]
[null,null,null,null,null,null,null,null,"",null,"",""]
[null,null,null,null,null,null,null,null,{"$f":"IF(B714>\"\",G714*H714,\"\")","v":""},null,{"$f":"IF(B714>\"\",I714*J714,\"\")","v":""},{"$f":"IF(B714>\"\",I714+K714,\"\")","v":""}]
[null,null,null,null,null,null,null,null,"",null,"",""]
[null,null,null,null,null,null,null,null,"",null,"",""]
[null,null,null,null,null,null,null,null,"",null,"",""]
[null,null,null,null,null,null,null,null,"",null,"",""]
[null,null,null,null,null,null,null,null,"",null,"",""]
[null,null,null,null,null,null,null,null,"",null,"",""]
[null,null,null,null,null,null,null,null,"",null,"",""]
[null,null,null,null,null,null,null,null,"",null,"",""]
[null,null,null,null,null,null,null,null,"",null,"",""]
[null,null,null,null,null,null,null,null,"",null,"",""]
[null,null,null,null,null,null,null,null,"",null,"",""]
[null,null,null,null,null,null,null,null,"",null,"",""]
[null,null,null,null,null,null,null,null,"",null,"",""]
[null,null,null,null,null,null,null,null,"",null,"",""]
[null,null,null,null,null,null,null,null,"",null,"",""]
[null,null,null,null,null,null,null,null,"",null,"",""]
[null,null,null,null,null,null,null,null,"",null,"",""]
[null,null,null,null,null,null,null,null,"",null,"",""]
[null,null,null,null,null,null,null,null,"",null,"",""]
[null,null,null,null,null,null,null,null,"",null,"",""]
[null,null,null,null,null,null,null,null,"",null,"",""]
[null,null,null,null,null,null,null,null,"",null,"",""]
[null,null,null,null,null,null,null,null,"",null,"",""]
[null,null,null,null,null,null,null,null,"",null,"",""]
[null,null,null,null,null,null,null,null,"",null,"",""]
[null,null,null,null,null,null,null,null,"",null,"",""]
[null,null,null,null,null,null,null,null,"",null,"",""]
[null,null,null,null,null,null,null,null,"",null,"",""]
[null,null,null,null,null,null,null,null,"",null,"",""]
[null,null,null,null,null,null,null,null,"",null,"",""]
[null,null,null,null,null,null,null,null,"",null,"",""]
[null,null,null,null,null,null,null,null,"",null,"",""]
[null,null,null,null,null,null,null,null,"",null,"",""]
[null,null,null,null,null,null,null,null,"",null,"",""]
[null,null,null,null,null,null,null,null,"",null,"",""]
[null,null,null,null,null,null,null,null,"",null,"",""]
[null,null,null,null,null,null,null,null,"",null,"",""]
[null,null,null,null,null,null,null,null,"",null,"",""]
[null,null,null,null,null,null,null,null,"",null,"",""]
[null,null,null,null,null,null,null,null,"",null,"",""]
[null,null,null,null,null,null,null,null,"",null,"",""]
[null,null,null,null,null,null,null,null,"",null,"",""]
[null,null,null,null,null,null,null,null,"",null,"",""]
[null,null,null,null,null,null,null,null,"",null,"",""]
[null,null,null,null,null,null,null,null,"",null,"",""]
[null,null,null,null,null,null,null,null,"",null,"",""]
[null,null,null,null,null,null,null,null,"",null,"",""]
[null,null,null,null,null,null,null,null,"",null,"",""]
[null,null,null,null,null,null,null,null,"",null,"",""]
[null,null,null,null,null,null,null,null,"",null,"",""]
[null,null,null,null,null,null,null,null,"",null,"",""]
[null,null,null,null,null,null,null,null,"",null,"",""]
[null,null,null,null,null,null,null,null,"",null,"",""]
[null,null,null,null,null,null,null,null,"",null,"",""]
[null,null,null,null,null,null,null,null,"",null,"",""]
[null,null,null,null,null,null,null,null,"",null,"",""]
[null,null,null,null,null,null,null,null,"",null,"",""]
[null,null,null,null,null,null,null,null,"",null,"",""]
[null,null,null,null,null,null,null,null,"",null,"",""]
[null,null,null,null,null,null,null,null,"",null,"",""]
[null,null,null,null,null,null,null,null,"",null,"",""]
[null,null,null,null,null,null,null,null,"",null,"",""]
[null,null,null,null,null,null,null,null,"",null,"",""]
[null,null,null,null,null,null,null,null,{"$f":"IF(B778>\"\",G778*H778,\"\")","v":""},null,{"$f":"IF(B778>\"\",I778*J778,\"\")","v":""},{"$f":"IF(B778>\"\",I778+K778,\"\")","v":""}]
[null,null,null,null,null,null,null,null,"",null,"",""]
[null,null,null,null,null,null,null,null,"",null,"",""]
[null,null,null,null,null,null,null,null,"",null,"",""]
[null,null,null,null,null,null,null,null,"",null,"",""]
[null,null,null,null,null,null,null,null,"",null,"",""]
[null,null,null,null,null,null,null,null,"",null,"",""]
[null,null,null,null,null,null,null,null,"",null,"",""]
[null,null,null,null,null,null,null,null,"",null,"",""]
[null,null,null,null,null,null,null,null,"",null,"",""]
[null,null,null,null,null,null,null,null,"",null,"",""]
[null,null,null,null,null,null,null,null,"",null,"",""]
[null,null,null,null,null,null,null,null,"",null,"",""]
[null,null,null,null,null,null,null,null,"",null,"",""]
[null,null,null,null,null,null,null,null,"",null,"",""]
[null,null,null,null,null,null,null,null,"",null,"",""]
[null,null,null,null,null,null,null,null,"",null,"",""]
[null,null,null,null,null,null,null,null,"",null,"",""]
[null,null,null,null,null,null,null,null,"",null,"",""]
[null,null,null,null,null,null,null,null,"",null,"",""]
[null,null,null,null,null,null,null,null,"",null,"",""]
[null,null,null,null,null,null,null,null,"",null,"",""]
[null,null,null,null,null,null,null,null,"",null,"",""]
[null,null,null,null,null,null,null,null,"",null,"",""]
[null,null,null,null,null,null,null,null,"",null,"",""]
[null,null,null,null,null,null,null,null,"",null,"",""]
[null,null,null,null,null,null,null,null,"",null,"",""]
[null,null,null,null,null,null,null,null,"",null,"",""]
[null,null,null,null,null,null,null,null,"",null,"",""]
[null,null,null,null,null,null,null,null,"",null,"",""]
[null,null,null,null,null,null,null,null,"",null,"",""]
[null,null,null,null,null,null,null,null,"",null,"",""]
[null,null,null,null,null,null,null,null,"",null,"",""]
[null,null,null,null,null,null,null,null,"",null,"",""]
[null,null,null,null,null,null,null,null,"",null,"",""]
[null,null,null,null,null,null,null,null,"",null,"",""]
[null,null,null,null,null,null,null,null,"",null,"",""]
[null,null,null,null,null,null,null,null,"",null,"",""]
[null,null,null,null,null,null,null,null,"",null,"",""]
[null,null,null,null,null,null,null,null,"",null,"",""]
[null,null,null,null,null,null,null,null,"",null,"",""]
[null,null,null,null,null,null,null,null,"",null,"",""]
[null,null,null,null,null,null,null,null,"",null,"",""]
[null,null,null,null,null,null,null,null,"",null,"",""]
[null,null,null,null,null,null,null,null,"",null,"",""]
[null,null,null,null,null,null,null,null,"",null,"",""]
[null,null,null,null,null,null,null,null,"",null,"",""]
[null,null,null,null,null,null,null,null,"",null,"",""]
[null,null,null,null,null,null,null,null,"",null,"",""]
[null,null,null,null,null,null,null,null,"",null,"",""]
[null,null,null,null,null,null,null,null,"",null,"",""]
[null,null,null,null,null,null,null,null,"",null,"",""]
[null,null,null,null,null,null,null,null,"",null,"",""]
[null,null,null,null,null,null,null,null,"",null,"",""]
[null,null,null,null,null,null,null,null,"",null,"",""]
[null,null,null,null,null,null,null,null,"",null,"",""]
[null,null,null,null,null,null,null,null,"",null,"",""]
[null,null,null,null,null,null,null,null,"",null,"",""]
[null,null,null,null,null,null,null,null,"",null,"",""]
[null,null,null,null,null,null,null,null,"",null,"",""]
[null,null,null,null,null,null,null,null,"",null,"",""]
[null,null,null,null,null,null,null,null,"",null,"",""]
[null,null,null,null,null,null,null,null,"",null,"",""]
[null,null,null,null,null,null,null,null,"",null,"",""]
[null,null,null,null,null,null,null,null,{"$f":"IF(B842>\"\",G842*H842,\"\")","v":""},null,{"$f":"IF(B842>\"\",I842*J842,\"\")","v":""},{"$f":"IF(B842>\"\",I842+K842,\"\")","v":""}]
[null,null,null,null,null,null,null,null,"",null,"",""]
[null,null,null,null,null,null,null,null,"",null,"",""]
[null,null,null,null,null,null,null,null,"",null,"",""]
[null,null,null,null,null,null,null,null,"",null,"",""]
[null,null,null,null,null,null,null,null,"",null,"",""]
[null,null,null,null,null,null,null,null,"",null,"",""]
[null,null,null,null,null,null,null,null,"",null,"",""]
[null,null,null,null,null,null,null,null,"",null,"",""]
[null,null,null,null,null,null,null,null,"",null,"",""]
[null,null,null,null,null,null,null,null,"",null,"",""]
[null,null,null,null,null,null,null,null,"",null,"",""]
[null,null,null,null,null,null,null,null,"",null,"",""]
[null,null,null,null,null,null,null,null,"",null,"",""]
[null,null,null,null,null,null,null,null,"",null,"",""]
[null,null,null,null,null,null,null,null,"",null,"",""]
[null,null,null,null,null,null,null,null,"",null,"",""]
[null,null,null,null,null,null,null,null,"",null,"",""]
[null,null,null,null,null,null,null,null,"",null,"",""]
[null,null,null,null,null,null,null,null,"",null,"",""]
[null,null,null,null,null,null,null,null,"",null,"",""]
[null,null,null,null,null,null,null,null,"",null,"",""]
[null,null,null,null,null,null,null,null,"",null,"",""]
[null,null,null,null,null,null,null,null,"",null,"",""]
[null,null,null,null,null,null,null,null,"",null,"",""]
[null,null,null,null,null,null,null,null,"",null,"",""]
[null,null,null,null,null,null,null,null,"",null,"",""]
[null,null,null,null,null,null,null,null,"",null,"",""]
[null,null,null,null,null,null,null,null,"",null,"",""]
[null,null,null,null,null,null,null,null,"",null,"",""]
[null,null,null,null,null,null,null,null,"",null,"",""]
[null,null,null,null,null,null,null,null,"",null,"",""]
[null,null,null,null,null,null,null,null,"",null,"",""]
[null,null,null,null,null,null,null,null,"",null,"",""]
[null,null,null,null,null,null,null,null,"",null,"",""]
[null,null,null,null,null,null,null,null,"",null,"",""]
[null,null,null,null,null,null,null,null,"",null,"",""]
[null,null,null,null,null,null,null,null,"",null,"",""]
[null,null,null,null,null,null,null,null,"",null,"",""]
[null,null,null,null,null,null,null,null,"",null,"",""]
[null,null,null,null,null,null,null,null,"",null,"",""]
[null,null,null,null,null,null,null,null,"",null,"",""]
[null,null,null,null,null,null,null,null,"",null,"",""]
[null,null,null,null,null,null,null,null,"",null,"",""]
[null,null,null,null,null,null,null,null,"",null,"",""]
[null,null,null,null,null,null,null,null,"",null,"",""]
[null,null,null,null,null,null,null,null,"",null,"",""]
[null,null,null,null,null,null,null,null,"",null,"",""]
[null,null,null,null,null,null,null,null,"",null,"",""]
[null,null,null,null,null,null,null,null,"",null,"",""]
[null,null,null,null,null,null,null,null,"",null,"",""]
[null,null,null,null,null,null,null,null,"",null,"",""]
[null,null,null,null,null,null,null,null,"",null,"",""]
[null,null,null,null,null,null,null,null,"",null,"",""]
[null,null,null,null,null,null,null,null,"",null,"",""]
[null,null,null,null,null,null,null,null,"",null,"",""]
[null,null,null,null,null,null,null,null,"",null,"",""]
[null,null,null,null,null,null,null,null,"",null,"",""]
[null,null,null,null,null,null,null,null,"",null,"",""]
[null,null,null,null,null,null,null,null,"",null,"",""]
[null,null,null,null,null,null,null,null,"",null,"",""]
[null,null,null,null,null,null,null,null,"",null,"",""]
[null,null,null,null,null,null,null,null,"",null,"",""]
[null,null,null,null,null,null,null,null,"",null,"",""]
[null,null,null,null,null,null,null,null,{"$f":"IF(B906>\"\",G906*H906,\"\")","v":""},null,{"$f":"IF(B906>\"\",I906*J906,\"\")","v":""},{"$f":"IF(B906>\"\",I906+K906,\"\")","v":""}]
[null,null,null,null,null,null,null,null,"",null,"",""]
[null,null,null,null,null,null,null,null,"",null,"",""]
[null,null,null,null,null,null,null,null,"",null,"",""]
[null,null,null,null,null,null,null,null,"",null,"",""]
[null,null,null,null,null,null,null,null,"",null,"",""]
[null,null,null,null,null,null,null,null,"",null,"",""]
[null,null,null,null,null,null,null,null,"",null,"",""]
[null,null,null,null,null,null,null,null,"",null,"",""]
[null,null,null,null,null,null,null,null,"",null,"",""]
[null,null,null,null,null,null,null,null,"",null,"",""]
[null,null,null,null,null,null,null,null,"",null,"",""]
[null,null,null,null,null,null,null,null,"",null,"",""]
[null,null,null,null,null,null,null,null,"",null,"",""]
[null,null,null,null,null,null,null,null,"",null,"",""]
[null,null,null,null,null,null,null,null,"",null,"",""]
[null,null,null,null,null,null,null,null,"",null,"",""]
[null,null,null,null,null,null,null,null,"",null,"",""]
[null,null,null,null,null,null,null,null,"",null,"",""]
[null,null,null,null,null,null,null,null,"",null,"",""]
[null,null,null,null,null,null,null,null,"",null,"",""]
[null,null,null,null,null,null,null,null,"",null,"",""]
[null,null,null,null,null,null,null,null,"",null,"",""]
[null,null,null,null,null,null,null,null,"",null,"",""]
[null,null,null,null,null,null,null,null,"",null,"",""]
[null,null,null,null,null,null,null,null,"",null,"",""]
[null,null,null,null,null,null,null,null,"",null,"",""]
[null,null,null,null,null,null,null,null,"",null,"",""]
[null,null,null,null,null,null,null,null,"",null,"",""]
[null,null,null,null,null,null,null,null,"",null,"",""]
[null,null,null,null,null,null,null,null,"",null,"",""]
[null,null,null,null,null,null,null,null,"",null,"",""]
[null,null,null,null,null,null,null,null,"",null,"",""]
[null,null,null,null,null,null,null,null,"",null,"",""]
[null,null,null,null,null,null,null,null,"",null,"",""]
[null,null,null,null,null,null,null,null,"",null,"",""]
[null,null,null,null,null,null,null,null,"",null,"",""]
[null,null,null,null,null,null,null,null,"",null,"",""]
[null,null,null,null,null,null,null,null,"",null,"",""]
[null,null,null,null,null,null,null,null,"",null,"",""]
[null,null,null,null,null,null,null,null,"",null,"",""]
[null,null,null,null,null,null,null,null,"",null,"",""]
[null,null,null,null,null,null,null,null,"",null,"",""]
[null,null,null,null,null,null,null,null,"",null,"",""]
[null,null,null,null,null,null,null,null,"",null,"",""]
[null,null,null,null,null,null,null,null,"",null,"",""]
[null,null,null,null,null,null,null,null,"",null,"",""]
[null,null,null,null,null,null,null,null,"",null,"",""]
[null,null,null,null,null,null,null,null,"",null,"",""]
[null,null,null,null,null,null,null,null,"",null,"",""]
[null,null,null,null,null,null,null,null,"",null,"",""]
[null,null,null,null,null,null,null,null,"",null,"",""]
[null,null,null,null,null,null,null,null,"",null,"",""]
[null,null,null,null,null,null,null,null,"",null,"",""]
[null,null,null,null,null,null,null,null,"",null,"",""]
[null,null,null,null,null,null,null,null,"",null,"",""]
[null,null,null,null,null,null,null,null,"",null,"",""]
[null,null,null,null,null,null,null,null,"",null,"",""]
[null,null,null,null,null,null,null,null,"",null,"",""]
[null,null,null,null,null,null,null,null,"",null,"",""]
[null,null,null,null,null,null,null,null,"",null,"",""]
[null,null,null,null,null,null,null,null,"",null,"",""]
[null,null,null,null,null,null,null,null,"",null,"",""]
[null,null,null,null,null,null,null,null,"",null,"",""]
[null,null,null,null,null,null,null,null,{"$f":"IF(B970>\"\",G970*H970,\"\")","v":""},null,{"$f":"IF(B970>\"\",I970*J970,\"\")","v":""},{"$f":"IF(B970>\"\",I970+K970,\"\")","v":""}]
[null,null,null,null,null,null,null,null,"",null,"",""]
[null,null,null,null,null,null,null,null,"",null,"",""]
[null,null,null,null,null,null,null,null,"",null,"",""]
[null,null,null,null,null,null,null,null,"",null,"",""]
[null,null,null,null,null,null,null,null,"",null,"",""]
[null,null,null,null,null,null,null,null,"",null,"",""]
[null,null,null,null,null,null,null,null,"",null,"",""]
[null,null,null,null,null,null,null,null,"",null,"",""]
[null,null,null,null,null,null,null,null,"",null,"",""]
[null,null,null,null,null,null,null,null,"",null,"",""]
[null,null,null,null,null,null,null,null,"",null,"",""]
[null,null,null,null,null,null,null,null,"",null,"",""]
[null,null,null,null,null,null,null,null,"",null,"",""]
[null,null,null,null,null,null,null,null,"",null,"",""]
[null,null,null,null,null,null,null,null,"",null,"",""]
[null,null,null,null,null,null,null,null,"",null,"",""]
[null,null,null,null,null,null,null,null,"",null,"",""]
[null,null,null,null,null,null,null,null,"",null,"",""]
[null,null,null,null,null,null,null,null,"",null,"",""]
[null,null,null,null,null,null,null,null,"",null,"",""]
[null,null,null,null,null,null,null,null,"",null,"",""]
[null,null,null,null,null,null,null,null,"",null,"",""]
[null,null,null,null,null,null,null,null,"",null,"",""]
[null,null,null,null,null,null,null,null,"",null,"",""]
[null,null,null,null,null,null,null,null,"",null,"",""]
[null,null,null,null,null,null,null,null,"",null,"",""]
[null,null,null,null,null,null,null,null,"",null,"",""]
[null,null,null,null,null,null,null,null,"",null,"",""]
[null,null,null,null,null,null,null,null,"",null,"",""]
[null,null,null,null,null,null,null,null,"",null,"",""]
[null,null,null,null,null,null,null,null,"",null,"",""]
[null,null,null,null,null,null,null,null,"",null,"",""]
[null,null,null,null,null,null,null,null,"",null,"",""]
[null,null,null,null,null,null,null,null,"",null,"",""]
[null,null,null,null,null,null,null,null,"",null,"",""]
[null,null,null,null,null,null,null,null,"",null,"",""]
[null,null,null,null,null,null,null,null,"",null,"",""]
[null,null,null,null,null,null,null,null,"",null,"",""]
[null,null,null,null,null,null,null,null,"",null,"",""]
[null,null,null,null,null,null,null,null,"",null,"",""]
[null,null,null,null,null,null,null,null,"",null,"",""]
[null,null,null,null,null,null,null,null,"",null,"",""]
[null,null,null,null,null,null,null,null,"",null,"",""]
[null,null,null,null,null,null,null,null,"",null,"",""]
[null,null,null,null,null,null,null,null,"",null,"",""]
[null,null,null,null,null,null,null,null,"",null,"",""]
[null,null,null,null,null,null,null,null,"",null,"",""]
[null,null,null,null,null,null,null,null,"",null,"",""]
[null,null,null,null,null,null,null,null,"",null,"",""]
[null,null,null,null,null,null,null,null,"",null,"",""]
[null,null,null,null,null,null,null,null,"",null,"",""]
[null,null,null,null,null,null,null,null,"",null,"",""]
[null,null,null,null,null,null,null,null,"",null,"",""]
[null,null,null,null,null,null,null,null,"",null,"",""]
[null,null,null,null,null,null,null,null,"",null,"",""]
[null,null,null,null,null,null,null,null,"",null,"",""]
[null,null,null,null,null,null,null,null,"",null,"",""]
[null,null,null,null,null,null,null,null,"",null,"",""]
[null,null,null,null,null,null,null,null,"",null,"",""]
[null,null,null,null,null,null,null,null,"",null,"",""]
[null,null,null,null,null,null,null,null,"",null,"",""]
[null,null,null,null,null,null,null,null,"",null,"",""]
[null,null,null,null,null,null,null,null,"",null,"",""]
[null,null,null,null,null,null,null,null,{"$f":"IF(B1034>\"\",G1034*H1034,\"\")","v":""},null,{"$f":"IF(B1034>\"\",I1034*J1034,\"\")","v":""},{"$f":"IF(B1034>\"\",I1034+K1034,\"\")","v":""}]
[null,null,null,null,null,null,null,null,"",null,"",""]
[null,null,null,null,null,null,null,null,"",null,"",""]
[null,null,null,null,null,null,null,null,"",null,"",""]
[null,null,null,null,null,null,null,null,"",null,"",""]
[null,null,null,null,null,null,null,null,"",null,"",""]
[null,null,null,null,null,null,null,null,"",null,"",""]
[null,null,null,null,null,null,null,null,"",null,"",""]
[null,null,null,null,null,null,null,null,"",null,"",""]
[null,null,null,null,null,null,null,null,"",null,"",""]
[null,null,null,null,null,null,null,null,"",null,"",""]
[null,null,null,null,null,null,null,null,"",null,"",""]
[null,null,null,null,null,null,null,null,"",null,"",""]
[null,null,null,null,null,null,null,null,"",null,"",""]
[null,null,null,null,null,null,null,null,"",null,"",""]
[null,null,null,null,null,null,null,null,"",null,"",""]
[null,null,null,null,null,null,null,null,"",null,"",""]
[null,null,null,null,null,null,null,null,"",null,"",""]
[null,null,null,null,null,null,null,null,"",null,"",""]
[null,null,null,null,null,null,null,null,"",null,"",""]
[null,null,null,null,null,null,null,null,"",null,"",""]
[null,null,null,null,null,null,null,null,"",null,"",""]
[null,null,null,null,null,null,null,null,"",null,"",""]
[null,null,null,null,null,null,null,null,"",null,"",""]
[null,null,null,null,null,null,null,null,"",null,"",""]
[null,null,null,null,null,null,null,null,"",null,"",""]
[null,null,null,null,null,null,null,null,"",null,"",""]
[null,null,null,null,null,null,null,null,"",null,"",""]
[null,null,null,null,null,null,null,null,"",null,"",""]
[null,null,null,null,null,null,null,null,"",null,"",""]
[null,null,null,null,null,null,null,null,"",null,"",""]
[null,null,null,null,null,null,null,null,"",null,"",""]
[null,null,null,null,null,null,null,null,"",null,"",""]
[null,null,null,null,null,null,null,null,"",null,"",""]
[null,null,null,null,null,null,null,null,"",null,"",""]
[null,null,null,null,null,null,null,null,"",null,"",""]
[null,null,null,null,null,null,null,null,"",null,"",""]
[null,null,null,null,null,null,null,null,"",null,"",""]
[null,null,null,null,null,null,null,null,"",null,"",""]
[null,null,null,null,null,null,null,null,"",null,"",""]
[null,null,null,null,null,null,null,null,"",null,"",""]
[null,null,null,null,null,null,null,null,"",null,"",""]
[null,null,null,null,null,null,null,null,"",null,"",""]
[null,null,null,null,null,null,null,null,"",null,"",""]
[null,null,null,null,null,null,null,null,"",null,"",""]
[null,null,null,null,null,null,null,null,"",null,"",""]
[null,null,null,null,null,null,null,null,"",null,"",""]
[null,null,null,null,null,null,null,null,"",null,"",""]
[null,null,null,null,null,null,null,null,"",null,"",""]
[null,null,null,null,null,null,null,null,"",null,"",""]
[null,null,null,null,null,null,null,null,"",null,"",""]
[null,null,null,null,null,null,null,null,"",null,"",""]
[null,null,null,null,null,null,null,null,"",null,"",""]
[null,null,null,null,null,null,null,null,"",null,"",""]
[null,null,null,null,null,null,null,null,"",null,"",""]
[null,null,null,null,null,null,null,null,"",null,"",""]
[null,null,null,null,null,null,null,null,"",null,"",""]
[null,null,null,null,null,null,null,null,"",null,"",""]
[null,null,null,null,null,null,null,null,"",null,"",""]
[null,null,null,null,null,null,null,null,"",null,"",""]
[null,null,null,null,null,null,null,null,"",null,"",""]
[null,null,null,null,null,null,null,null,"",null,"",""]
[null,null,null,null,null,null,null,null,"",null,"",""]
[null,null,null,null,null,null,null,null,"",null,"",""]
[null,null,null,null,null,null,null,null,{"$f":"IF(B1098>\"\",G1098*H1098,\"\")","v":""},null,{"$f":"IF(B1098>\"\",I1098*J1098,\"\")","v":""},{"$f":"IF(B1098>\"\",I1098+K1098,\"\")","v":""}]
[null,null,null,null,null,null,null,null,"",null,"",""]
[null,null,null,null,null,null,null,null,"",null,"",""]
[null,null,null,null,null,null,null,null,"",null,"",""]
[null,null,null,null,null,null,null,null,"",null,"",""]
[null,null,null,null,null,null,null,null,"",null,"",""]
[null,null,null,null,null,null,null,null,"",null,"",""]
[null,null,null,null,null,null,null,null,"",null,"",""]
[null,null,null,null,null,null,null,null,"",null,"",""]
[null,null,null,null,null,null,null,null,"",null,"",""]
[null,null,null,null,null,null,null,null,"",null,"",""]
[null,null,null,null,null,null,null,null,"",null,"",""]
[null,null,null,null,null,null,null,null,"",null,"",""]
[null,null,null,null,null,null,null,null,"",null,"",""]
[null,null,null,null,null,null,null,null,"",null,"",""]
[null,null,null,null,null,null,null,null,"",null,"",""]
[null,null,null,null,null,null,null,null,"",null,"",""]
[null,null,null,null,null,null,null,null,"",null,"",""]
[null,null,null,null,null,null,null,null,"",null,"",""]
[null,null,null,null,null,null,null,null,"",null,"",""]
[null,null,null,null,null,null,null,null,"",null,"",""]
[null,null,null,null,null,null,null,null,"",null,"",""]
[null,null,null,null,null,null,null,null,"",null,"",""]
[null,null,null,null,null,null,null,null,"",null,"",""]
[null,null,null,null,null,null,null,null,"",null,"",""]
[null,null,null,null,null,null,null,null,"",null,"",""]
[null,null,null,null,null,null,null,null,"",null,"",""]
[null,null,null,null,null,null,null,null,"",null,"",""]
[null,null,null,null,null,null,null,null,"",null,"",""]
[null,null,null,null,null,null,null,null,"",null,"",""]
[null,null,null,null,null,null,null,null,"",null,"",""]
[null,null,null,null,null,null,null,null,"",null,"",""]
[null,null,null,null,null,null,null,null,"",null,"",""]
[null,null,null,null,null,null,null,null,"",null,"",""]
[null,null,null,null,null,null,null,null,"",null,"",""]
[null,null,null,null,null,null,null,null,"",null,"",""]
[null,null,null,null,null,null,null,null,"",null,"",""]
[null,null,null,null,null,null,null,null,"",null,"",""]
[null,null,null,null,null,null,null,null,"",null,"",""]
[null,null,null,null,null,null,null,null,"",null,"",""]
[null,null,null,null,null,null,null,null,"",null,"",""]
[null,null,null,null,null,null,null,null,"",null,"",""]
[null,null,null,null,null,null,null,null,"",null,"",""]
[null,null,null,null,null,null,null,null,"",null,"",""]
[null,null,null,null,null,null,null,null,"",null,"",""]
[null,null,null,null,null,null,null,null,"",null,"",""]
[null,null,null,null,null,null,null,null,"",null,"",""]
[null,null,null,null,null,null,null,null,"",null,"",""]
[null,null,null,null,null,null,null,null,"",null,"",""]
[null,null,null,null,null,null,null,null,"",null,"",""]
[null,null,null,null,null,null,null,null,"",null,"",""]
[null,null,null,null,null,null,null,null,"",null,"",""]
[null,null,null,null,null,null,null,null,"",null,"",""]
[null,null,null,null,null,null,null,null,"",null,"",""]
[null,null,null,null,null,null,null,null,"",null,"",""]
[null,null,null,null,null,null,null,null,"",null,"",""]
[null,null,null,null,null,null,null,null,"",null,"",""]
[null,null,null,null,null,null,null,null,"",null,"",""]
[null,null,null,null,null,null,null,null,"",null,"",""]
[null,null,null,null,null,null,null,null,"",null,"",""]
[null,null,null,null,null,null,null,null,"",null,"",""]
[null,null,null,null,null,null,null,null,"",null,"",""]
[null,null,null,null,null,null,null,null,"",null,"",""]
[null,null,null,null,null,null,null,null,"",null,"",""]
[null,null,null,null,null,null,null,null,{"$f":"IF(B1162>\"\",G1162*H1162,\"\")","v":""},null,{"$f":"IF(B1162>\"\",I1162*J1162,\"\")","v":""},{"$f":"IF(B1162>\"\",I1162+K1162,\"\")","v":""}]
[null,null,null,null,null,null,null,null,"",null,"",""]
[null,null,null,null,null,null,null,null,"",null,"",""]
[null,null,null,null,null,null,null,null,"",null,"",""]
[null,null,null,null,null,null,null,null,"",null,"",""]
[null,null,null,null,null,null,null,null,"",null,"",""]
[null,null,null,null,null,null,null,null,"",null,"",""]
[null,null,null,null,null,null,null,null,"",null,"",""]
[null,null,null,null,null,null,null,null,"",null,"",""]
[null,null,null,null,null,null,null,null,"",null,"",""]
[null,null,null,null,null,null,null,null,"",null,"",""]
[null,null,null,null,null,null,null,null,"",null,"",""]
[null,null,null,null,null,null,null,null,"",null,"",""]
[null,null,null,null,null,null,null,null,"",null,"",""]
[null,null,null,null,null,null,null,null,"",null,"",""]
[null,null,null,null,null,null,null,null,"",null,"",""]
[null,null,null,null,null,null,null,null,"",null,"",""]
[null,null,null,null,null,null,null,null,"",null,"",""]
[null,null,null,null,null,null,null,null,"",null,"",""]
[null,null,null,null,null,null,null,null,"",null,"",""]
[null,null,null,null,null,null,null,null,"",null,"",""]
[null,null,null,null,null,null,null,null,"",null,"",""]
[null,null,null,null,null,null,null,null,"",null,"",""]
[null,null,null,null,null,null,null,null,"",null,"",""]
[null,null,null,null,null,null,null,null,"",null,"",""]
[null,null,null,null,null,null,null,null,"",null,"",""]
[null,null,null,null,null,null,null,null,"",null,"",""]
[null,null,null,null,null,null,null,null,"",null,"",""]
[null,null,null,null,null,null,null,null,"",null,"",""]
[null,null,null,null,null,null,null,null,"",null,"",""]
[null,null,null,null,null,null,null,null,"",null,"",""]
[null,null,null,null,null,null,null,null,"",null,"",""]
[null,null,null,null,null,null,null,null,"",null,"",""]
[null,null,null,null,null,null,null,null,"",null,"",""]
[null,null,null,null,null,null,null,null,"",null,"",""]
[null,null,null,null,null,null,null,null,"",null,"",""]
[null,null,null,null,null,null,null,null,"",null,"",""]
[null,null,null,null,null,null,null,null,"",null,"",""]
[null,null,null,null,null,null,null,null,"",null,"",""]
[null,null,null,null,null,null,null,null,"",null,"",""]
[null,null,null,null,null,null,null,null,"",null,"",""]
[null,null,null,null,null,null,null,null,"",null,"",""]
[null,null,null,null,null,null,null,null,"",null,"",""]
[null,null,null,null,null,null,null,null,"",null,"",""]
[null,null,null,null,null,null,null,null,"",null,"",""]
[null,null,null,null,null,null,null,null,"",null,"",""]
[null,null,null,null,null,null,null,null,"",null,"",""]
[null,null,null,null,null,null,null,null,"",null,"",""]
[null,null,null,null,null,null,null,null,"",null,"",""]
[null,null,null,null,null,null,null,null,"",null,"",""]
[null,null,null,null,null,null,null,null,"",null,"",""]
[null,null,null,null,null,null,null,null,"",null,"",""]
[null,null,null,null,null,null,null,null,"",null,"",""]
[null,null,null,null,null,null,null,null,"",null,"",""]
[null,null,null,null,null,null,null,null,"",null,"",""]
[null,null,null,null,null,null,null,null,"",null,"",""]
[null,null,null,null,null,null,null,null,"",null,"",""]
[null,null,null,null,null,null,null,null,"",null,"",""]
[null,null,null,null,null,null,null,null,"",null,"",""]
[null,null,null,null,null,null,null,null,"",null,"",""]
[null,null,null,null,null,null,null,null,"",null,"",""]
[null,null,null,null,null,null,null,null,"",null,"",""]
[null,null,null,null,null,null,null,null,"",null,"",""]
[null,null,null,null,null,null,null,null,"",null,"",""]
[null,null,null,null,null,null,null,null,{"$f":"IF(B1226>\"\",G1226*H1226,\"\")","v":""},null,{"$f":"IF(B1226>\"\",I1226*J1226,\"\")","v":""},{"$f":"IF(B1226>\"\",I1226+K1226,\"\")","v":""}]
[null,null,null,null,null,null,null,null,"",null,"",""]
[null,null,null,null,null,null,null,null,"",null,"",""]
[null,null,null,null,null,null,null,null,"",null,"",""]
[null,null,null,null,null,null,null,null,"",null,"",""]
[null,null,null,null,null,null,null,null,"",null,"",""]
[null,null,null,null,null,null,null,null,"",null,"",""]
[null,null,null,null,null,null,null,null,"",null,"",""]
[null,null,null,null,null,null,null,null,"",null,"",""]
[null,null,null,null,null,null,null,null,"",null,"",""]
[null,null,null,null,null,null,null,null,"",null,"",""]
[null,null,null,null,null,null,null,null,"",null,"",""]
[null,null,null,null,null,null,null,null,"",null,"",""]
[null,null,null,null,null,null,null,null,"",null,"",""]
[null,null,null,null,null,null,null,null,"",null,"",""]
[null,null,null,null,null,null,null,null,"",null,"",""]
[null,null,null,null,null,null,null,null,"",null,"",""]
[null,null,null,null,null,null,null,null,"",null,"",""]
[null,null,null,null,null,null,null,null,"",null,"",""]
[null,null,null,null,null,null,null,null,"",null,"",""]
[null,null,null,null,null,null,null,null,"",null,"",""]
[null,null,null,null,null,null,null,null,"",null,"",""]
[null,null,null,null,null,null,null,null,"",null,"",""]
[null,null,null,null,null,null,null,null,"",null,"",""]
[null,null,null,null,null,null,null,null,"",null,"",""]
[null,null,null,null,null,null,null,null,"",null,"",""]
[null,null,null,null,null,null,null,null,"",null,"",""]
[null,null,null,null,null,null,null,null,"",null,"",""]
[null,null,null,null,null,null,null,null,"",null,"",""]
[null,null,null,null,null,null,null,null,"",null,"",""]
[null,null,null,null,null,null,null,null,"",null,"",""]
[null,null,null,null,null,null,null,null,"",null,"",""]
[null,null,null,null,null,null,null,null,"",null,"",""]
[null,null,null,null,null,null,null,null,"",null,"",""]
[null,null,null,null,null,null,null,null,"",null,"",""]
[null,null,null,null,null,null,null,null,"",null,"",""]
[null,null,null,null,null,null,null,null,"",null,"",""]
[null,null,null,null,null,null,null,null,"",null,"",""]
[null,null,null,null,null,null,null,null,"",null,"",""]
[null,null,null,null,null,null,null,null,"",null,"",""]
[null,null,null,null,null,null,null,null,"",null,"",""]
[null,null,null,null,null,null,null,null,"",null,"",""]
[null,null,null,null,null,null,null,null,"",null,"",""]
[null,null,null,null,null,null,null,null,"",null,"",""]
[null,null,null,null,null,null,null,null,"",null,"",""]
[null,null,null,null,null,null,null,null,"",null,"",""]
[null,null,null,null,null,null,null,null,"",null,"",""]
[null,null,null,null,null,null,null,null,"",null,"",""]
[null,null,null,null,null,null,null,null,"",null,"",""]
[null,null,null,null,null,null,null,null,"",null,"",""]
[null,null,null,null,null,null,null,null,"",null,"",""]
[null,null,null,null,null,null,null,null,"",null,"",""]
[null,null,null,null,null,null,null,null,"",null,"",""]
[null,null,null,null,null,null,null,null,"",null,"",""]
[null,null,null,null,null,null,null,null,"",null,"",""]
[null,null,null,null,null,null,null,null,"",null,"",""]
[null,null,null,null,null,null,null,null,"",null,"",""]
[null,null,null,null,null,null,null,null,"",null,"",""]
[null,null,null,null,null,null,null,null,"",null,"",""]
[null,null,null,null,null,null,null,null,"",null,"",""]
[null,null,null,null,null,null,null,null,"",null,"",""]
[null,null,null,null,null,null,null,null,"",null,"",""]
[null,null,null,null,null,null,null,null,"",null,"",""]
[null,null,null,null,null,null,null,null,"",null,"",""]
[null,null,null,null,null,null,null,null,{"$f":"IF(B1290>\"\",G1290*H1290,\"\")","v":""},null,{"$f":"IF(B1290>\"\",I1290*J1290,\"\")","v":""},{"$f":"IF(B1290>\"\",I1290+K1290,\"\")","v":""}]
[null,null,null,null,null,null,null,null,"",null,"",""]
[null,null,null,null,null,null,null,null,"",null,"",""]
[null,null,null,null,null,null,null,null,"",null,"",""]
[null,null,null,null,null,null,null,null,"",null,"",""]
[null,null,null,null,null,null,null,null,"",null,"",""]
[null,null,null,null,null,null,null,null,"",null,"",""]
[null,null,null,null,null,null,null,null,"",null,"",""]
[null,null,null,null,null,null,null,null,"",null,"",""]
[null,null,null,null,null,null,null,null,"",null,"",""]
[null,null,null,null,null,null,null,null,"",null,"",""]
[null,null,null,null,null,null,null,null,"",null,"",""]
[null,null,null,null,null,null,null,null,"",null,"",""]
[null,null,null,null,null,null,null,null,"",null,"",""]
[null,null,null,null,null,null,null,null,"",null,"",""]
[null,null,null,null,null,null,null,null,"",null,"",""]
[null,null,null,null,null,null,null,null,"",null,"",""]
[null,null,null,null,null,null,null,null,"",null,"",""]
[null,null,null,null,null,null,null,null,"",null,"",""]
[null,null,null,null,null,null,null,null,"",null,"",""]
[null,null,null,null,null,null,null,null,"",null,"",""]
[null,null,null,null,null,null,null,null,"",null,"",""]
[null,null,null,null,null,null,null,null,"",null,"",""]
[null,null,null,null,null,null,null,null,"",null,"",""]
[null,null,null,null,null,null,null,null,"",null,"",""]
[null,null,null,null,null,null,null,null,"",null,"",""]
[null,null,null,null,null,null,null,null,"",null,"",""]
[null,null,null,null,null,null,null,null,"",null,"",""]
[null,null,null,null,null,null,null,null,"",null,"",""]
[null,null,null,null,null,null,null,null,"",null,"",""]
[null,null,null,null,null,null,null,null,"",null,"",""]
[null,null,null,null,null,null,null,null,"",null,"",""]
[null,null,null,null,null,null,null,null,"",null,"",""]
[null,null,null,null,null,null,null,null,"",null,"",""]
[null,null,null,null,null,null,null,null,"",null,"",""]
[null,null,null,null,null,null,null,null,"",null,"",""]
[null,null,null,null,null,null,null,null,"",null,"",""]
[null,null,null,null,null,null,null,null,"",null,"",""]
[null,null,null,null,null,null,null,null,"",null,"",""]
[null,null,null,null,null,null,null,null,"",null,"",""]
[null,null,null,null,null,null,null,null,"",null,"",""]
[null,null,null,null,null,null,null,null,"",null,"",""]
[null,null,null,null,null,null,null,null,"",null,"",""]
[null,null,null,null,null,null,null,null,"",null,"",""]
[null,null,null,null,null,null,null,null,"",null,"",""]
[null,null,null,null,null,null,null,null,"",null,"",""]
[null,null,null,null,null,null,null,null,"",null,"",""]
[null,null,null,null,null,null,null,null,"",null,"",""]
[null,null,null,null,null,null,null,null,"",null,"",""]
[null,null,null,null,null,null,null,null,"",null,"",""]
[null,null,null,null,null,null,null,null,"",null,"",""]
[null,null,null,null,null,null,null,null,"",null,"",""]
[null,null,null,null,null,null,null,null,"",null,"",""]
[null,null,null,null,null,null,null,null,"",null,"",""]
[null,null,null,null,null,null,null,null,"",null,"",""]
[null,null,null,null,null,null,null,null,"",null,"",""]
[null,null,null,null,null,null,null,null,"",null,"",""]
[null,null,null,null,null,null,null,null,"",null,"",""]
[null,null,null,null,null,null,null,null,"",null,"",""]
[null,null,null,null,null,null,null,null,"",null,"",""]
[null,null,null,null,null,null,null,null,"",null,"",""]
[null,null,null,null,null,null,null,null,"",null,"",""]
[null,null,null,null,null,null,null,null,"",null,"",""]
[null,null,null,null,null,null,null,null,"",null,"",""]
[null,null,null,null,null,null,null,null,{"$f":"IF(B1354>\"\",G1354*H1354,\"\")","v":""},null,{"$f":"IF(B1354>\"\",I1354*J1354,\"\")","v":""},{"$f":"IF(B1354>\"\",I1354+K1354,\"\")","v":""}]
[null,null,null,null,null,null,null,null,"",null,"",""]
[null,null,null,null,null,null,null,null,"",null,"",""]
[null,null,null,null,null,null,null,null,"",null,"",""]
[null,null,null,null,null,null,null,null,"",null,"",""]
[null,null,null,null,null,null,null,null,"",null,"",""]
[null,null,null,null,null,null,null,null,"",null,"",""]
[null,null,null,null,null,null,null,null,"",null,"",""]
[null,null,null,null,null,null,null,null,"",null,"",""]
[null,null,null,null,null,null,null,null,"",null,"",""]
[null,null,null,null,null,null,null,null,"",null,"",""]
[null,null,null,null,null,null,null,null,"",null,"",""]
[null,null,null,null,null,null,null,null,"",null,"",""]
[null,null,null,null,null,null,null,null,"",null,"",""]
[null,null,null,null,null,null,null,null,"",null,"",""]
[null,null,null,null,null,null,null,null,"",null,"",""]
[null,null,null,null,null,null,null,null,"",null,"",""]
[null,null,null,null,null,null,null,null,"",null,"",""]
[null,null,null,null,null,null,null,null,"",null,"",""]
[null,null,null,null,null,null,null,null,"",null,"",""]
[null,null,null,null,null,null,null,null,"",null,"",""]
[null,null,null,null,null,null,null,null,"",null,"",""]
[null,null,null,null,null,null,null,null,"",null,"",""]
[null,null,null,null,null,null,null,null,"",null,"",""]
[null,null,null,null,null,null,null,null,"",null,"",""]
[null,null,null,null,null,null,null,null,"",null,"",""]
[null,null,null,null,null,null,null,null,"",null,"",""]
[null,null,null,null,null,null,null,null,"",null,"",""]
[null,null,null,null,null,null,null,null,"",null,"",""]
[null,null,null,null,null,null,null,null,"",null,"",""]
[null,null,null,null,null,null,null,null,"",null,"",""]
[null,null,null,null,null,null,null,null,"",null,"",""]
[null,null,null,null,null,null,null,null,"",null,"",""]
[null,null,null,null,null,null,null,null,"",null,"",""]
[null,null,null,null,null,null,null,null,"",null,"",""]
[null,null,null,null,null,null,null,null,"",null,"",""]
[null,null,null,null,null,null,null,null,"",null,"",""]
[null,null,null,null,null,null,null,null,"",null,"",""]
[null,null,null,null,null,null,null,null,"",null,"",""]
[null,null,null,null,null,null,null,null,"",null,"",""]
[null,null,null,null,null,null,null,null,"",null,"",""]
[null,null,null,null,null,null,null,null,"",null,"",""]
[null,null,null,null,null,null,null,null,"",null,"",""]
[null,null,null,null,null,null,null,null,"",null,"",""]
[null,null,null,null,null,null,null,null,"",null,"",""]
[null,null,null,null,null,null,null,null,"",null,"",""]
[null,null,null,null,null,null,null,null,"",null,"",""]
[null,null,null,null,null,null,null,null,"",null,"",""]
[null,null,null,null,null,null,null,null,"",null,"",""]
[null,null,null,null,null,null,null,null,"",null,"",""]
[null,null,null,null,null,null,null,null,"",null,"",""]
[null,null,null,null,null,null,null,null,"",null,"",""]
[null,null,null,null,null,null,null,null,"",null,"",""]
[null,null,null,null,null,null,null,null,"",null,"",""]
[null,null,null,null,null,null,null,null,"",null,"",""]
[null,null,null,null,null,null,null,null,"",null,"",""]
[null,null,null,null,null,null,null,null,"",null,"",""]
[null,null,null,null,null,null,null,null,"",null,"",""]
[null,null,null,null,null,null,null,null,"",null,"",""]
[null,null,null,null,null,null,null,null,"",null,"",""]
[null,null,null,null,null,null,null,null,"",null,"",""]
[null,null,null,null,null,null,null,null,"",null,"",""]
[null,null,null,null,null,null,null,null,"",null,"",""]
[null,null,null,null,null,null,null,null,"",null,"",""]
[null,null,null,null,null,null,null,null,{"$f":"IF(B1418>\"\",G1418*H1418,\"\")","v":""},null,{"$f":"IF(B1418>\"\",I1418*J1418,\"\")","v":""},{"$f":"IF(B1418>\"\",I1418+K1418,\"\")","v":""}]
[null,null,null,null,null,null,null,null,"",null,"",""]
[null,null,null,null,null,null,null,null,"",null,"",""]
[null,null,null,null,null,null,null,null,"",null,"",""]
[null,null,null,null,null,null,null,null,"",null,"",""]
[null,null,null,null,null,null,null,null,"",null,"",""]
[null,null,null,null,null,null,null,null,"",null,"",""]
[null,null,null,null,null,null,null,null,"",null,"",""]
[null,null,null,null,null,null,null,null,"",null,"",""]
[null,null,null,null,null,null,null,null,"",null,"",""]
[null,null,null,null,null,null,null,null,"",null,"",""]
[null,null,null,null,null,null,null,null,"",null,"",""]
[null,null,null,null,null,null,null,null,"",null,"",""]
[null,null,null,null,null,null,null,null,"",null,"",""]
[null,null,null,null,null,null,null,null,"",null,"",""]
[null,null,null,null,null,null,null,null,"",null,"",""]
[null,null,null,null,null,null,null,null,"",null,"",""]
[null,null,null,null,null,null,null,null,"",null,"",""]
[null,null,null,null,null,null,null,null,"",null,"",""]
[null,null,null,null,null,null,null,null,"",null,"",""]
[null,null,null,null,null,null,null,null,"",null,"",""]
[null,null,null,null,null,null,null,null,"",null,"",""]
[null,null,null,null,null,null,null,null,"",null,"",""]
[null,null,null,null,null,null,null,null,"",null,"",""]
[null,null,null,null,null,null,null,null,"",null,"",""]
[null,null,null,null,null,null,null,null,"",null,"",""]
[null,null,null,null,null,null,null,null,"",null,"",""]
[null,null,null,null,null,null,null,null,"",null,"",""]
[null,null,null,null,null,null,null,null,"",null,"",""]
[null,null,null,null,null,null,null,null,"",null,"",""]
[null,null,null,null,null,null,null,null,"",null,"",""]
[null,null,null,null,null,null,null,null,"",null,"",""]
[null,null,null,null,null,null,null,null,"",null,"",""]
[null,null,null,null,null,null,null,null,"",null,"",""]
[null,null,null,null,null,null,null,null,"",null,"",""]
[null,null,null,null,null,null,null,null,"",null,"",""]
[null,null,null,null,null,null,null,null,"",null,"",""]
[null,null,null,null,null,null,null,null,"",null,"",""]
[null,null,null,null,null,null,null,null,"",null,"",""]
[null,null,null,null,null,null,null,null,"",null,"",""]
[null,null,null,null,null,null,null,null,"",null,"",""]
[null,null,null,null,null,null,null,null,"",null,"",""]
[null,null,null,null,null,null,null,null,"",null,"",""]
[null,null,null,null,null,null,null,null,"",null,"",""]
[null,null,null,null,null,null,null,null,"",null,"",""]
[null,null,null,null,null,null,null,null,"",null,"",""]
[null,null,null,null,null,null,null,null,"",null,"",""]
[null,null,null,null,null,null,null,null,"",null,"",""]
[null,null,null,null,null,null,null,null,"",null,"",""]
[null,null,null,null,null,null,null,null,"",null,"",""]
[null,null,null,null,null,null,null,null,"",null,"",""]
[null,null,null,null,null,null,null,null,"",null,"",""]
[null,null,null,null,null,null,null,null,"",null,"",""]
[null,null,null,null,null,null,null,null,"",null,"",""]
[null,null,null,null,null,null,null,null,"",null,"",""]
[null,null,null,null,null,null,null,null,"",null,"",""]
[null,null,null,null,null,null,null,null,"",null,"",""]
[null,null,null,null,null,null,null,null,"",null,"",""]
[null,null,null,null,null,null,null,null,"",null,"",""]
[null,null,null,null,null,null,null,null,"",null,"",""]
[null,null,null,null,null,null,null,null,"",null,"",""]
[null,null,null,null,null,null,null,null,"",null,"",""]
[null,null,null,null,null,null,null,null,"",null,"",""]
[null,null,null,null,null,null,null,null,"",null,"",""]
[null,null,null,null,null,null,null,null,{"$f":"IF(B1482>\"\",G1482*H1482,\"\")","v":""},null,{"$f":"IF(B1482>\"\",I1482*J1482,\"\")","v":""},{"$f":"IF(B1482>\"\",I1482+K1482,\"\")","v":""}]
[null,null,null,null,null,null,null,null,"",null,"",""]
[null,null,null,null,null,null,null,null,"",null,"",""]
[null,null,null,null,null,null,null,null,"",null,"",""]
[null,null,null,null,null,null,null,null,"",null,"",""]
[null,null,null,null,null,null,null,null,"",null,"",""]
[null,null,null,null,null,null,null,null,"",null,"",""]
[null,null,null,null,null,null,null,null,"",null,"",""]
[null,null,null,null,null,null,null,null,"",null,"",""]
[null,null,null,null,null,null,null,null,"",null,"",""]
[null,null,null,null,null,null,null,null,"",null,"",""]
[null,null,null,null,null,null,null,null,"",null,"",""]
[null,null,null,null,null,null,null,null,"",null,"",""]
[null,null,null,null,null,null,null,null,"",null,"",""]
[null,null,null,null,null,null,null,null,"",null,"",""]
[null,null,null,null,null,null,null,null,"",null,"",""]
[null,null,null,null,null,null,null,null,"",null,"",""]
[null,null,null,null,null,null,null,null,"",null,"",""]
[null,null,null,null,null,null,null,null,"",null,"",""]
[null,null,null,null,null,null,null,null,"",null,"",""]
[null,null,null,null,null,null,null,null,"",null,"",""]
[null,null,null,null,null,null,null,null,"",null,"",""]
[null,null,null,null,null,null,null,null,"",null,"",""]
[null,null,null,null,null,null,null,null,"",null,"",""]
[null,null,null,null,null,null,null,null,"",null,"",""]
[null,null,null,null,null,null,null,null,"",null,"",""]
[null,null,null,null,null,null,null,null,"",null,"",""]
[null,null,null,null,null,null,null,null,"",null,"",""]
[null,null,null,null,null,null,null,null,"",null,"",""]
[null,null,null,null,null,null,null,null,"",null,"",""]
[null,null,null,null,null,null,null,null,"",null,"",""]
[null,null,null,null,null,null,null,null,"",null,"",""]
[null,null,null,null,null,null,null,null,"",null,"",""]
[null,null,null,null,null,null,null,null,"",null,"",""]
[null,null,null,null,null,null,null,null,"",null,"",""]
[null,null,null,null,null,null,null,null,"",null,"",""]
[null,null,null,null,null,null,null,null,"",null,"",""]
[null,null,null,null,null,null,null,null,"",null,"",""]
[null,null,null,null,null,null,null,null,"",null,"",""]
[null,null,null,null,null,null,null,null,"",null,"",""]
[null,null,null,null,null,null,null,null,"",null,"",""]
[null,null,null,null,null,null,null,null,"",null,"",""]
[null,null,null,null,null,null,null,null,"",null,"",""]
[null,null,null,null,null,null,null,null,"",null,"",""]
[null,null,null,null,null,null,null,null,"",null,"",""]
[null,null,null,null,null,null,null,null,"",null,"",""]
[null,null,null,null,null,null,null,null,"",null,"",""]
[null,null,null,null,null,null,null,null,"",null,"",""]
[null,null,null,null,null,null,null,null,"",null,"",""]
[null,null,null,null,null,null,null,null,"",null,"",""]
[null,null,null,null,null,null,null,null,"",null,"",""]
[null,null,null,null,null,null,null,null,"",null,"",""]
[null,null,null,null,null,null,null,null,"",null,"",""]
[null,null,null,null,null,null,null,null,"",null,"",""]
[null,null,null,null,null,null,null,null,"",null,"",""]
[null,null,null,null,null,null,null,null,"",null,"",""]
[null,null,null,null,null,null,null,null,"",null,"",""]
[null,null,null,null,null,null,null,null,"",null,"",""]
[null,null,null,null,null,null,null,null,"",null,"",""]
[null,null,null,null,null,null,null,null,"",null,"",""]
[null,null,null,null,null,null,null,null,"",null,"",""]
[null,null,null,null,null,null,null,null,"",null,"",""]
[null,null,null,null,null,null,null,null,"",null,"",""]
[null,null,null,null,null,null,null,null,"",null,"",""]
[null,null,null,null,null,null,null,null,{"$f":"IF(B1546>\"\",G1546*H1546,\"\")","v":""},null,{"$f":"IF(B1546>\"\",I1546*J1546,\"\")","v":""},{"$f":"IF(B1546>\"\",I1546+K1546,\"\")","v":""}]
[null,null,null,null,null,null,null,null,"",null,"",""]
[null,null,null,null,null,null,null,null,"",null,"",""]
[null,null,null,null,null,null,null,null,"",null,"",""]
[null,null,null,null,null,null,null,null,"",null,"",""]
[null,null,null,null,null,null,null,null,"",null,"",""]
[null,null,null,null,null,null,null,null,"",null,"",""]
[null,null,null,null,null,null,null,null,"",null,"",""]
[null,null,null,null,null,null,null,null,"",null,"",""]
[null,null,null,null,null,null,null,null,"",null,"",""]
[null,null,null,null,null,null,null,null,"",null,"",""]
[null,null,null,null,null,null,null,null,"",null,"",""]
[null,null,null,null,null,null,null,null,"",null,"",""]
[null,null,null,null,null,null,null,null,"",null,"",""]
[null,null,null,null,null,null,null,null,"",null,"",""]
[null,null,null,null,null,null,null,null,"",null,"",""]
[null,null,null,null,null,null,null,null,"",null,"",""]
[null,null,null,null,null,null,null,null,"",null,"",""]
[null,null,null,null,null,null,null,null,"",null,"",""]
[null,null,null,null,null,null,null,null,"",null,"",""]
[null,null,null,null,null,null,null,null,"",null,"",""]
[null,null,null,null,null,null,null,null,"",null,"",""]
[null,null,null,null,null,null,null,null,"",null,"",""]
[null,null,null,null,null,null,null,null,"",null,"",""]
[null,null,null,null,null,null,null,null,"",null,"",""]
[null,null,null,null,null,null,null,null,"",null,"",""]
[null,null,null,null,null,null,null,null,"",null,"",""]
[null,null,null,null,null,null,null,null,"",null,"",""]
[null,null,null,null,null,null,null,null,"",null,"",""]
[null,null,null,null,null,null,null,null,"",null,"",""]
[null,null,null,null,null,null,null,null,"",null,"",""]
[null,null,null,null,null,null,null,null,"",null,"",""]
[null,null,null,null,null,null,null,null,"",null,"",""]
[null,null,null,null,null,null,null,null,"",null,"",""]
[null,null,null,null,null,null,null,null,"",null,"",""]
[null,null,null,null,null,null,null,null,"",null,"",""]
[null,null,null,null,null,null,null,null,"",null,"",""]
[null,null,null,null,null,null,null,null,"",null,"",""]
[null,null,null,null,null,null,null,null,"",null,"",""]
[null,null,null,null,null,null,null,null,"",null,"",""]
[null,null,null,null,null,null,null,null,"",null,"",""]
[null,null,null,null,null,null,null,null,"",null,"",""]
[null,null,null,null,null,null,null,null,"",null,"",""]
[null,null,null,null,null,null,null,null,"",null,"",""]
[null,null,null,null,null,null,null,null,"",null,"",""]
[null,null,null,null,null,null,null,null,"",null,"",""]
[null,null,null,null,null,null,null,null,"",null,"",""]
[null,null,null,null,null,null,null,null,"",null,"",""]
[null,null,null,null,null,null,null,null,"",null,"",""]
[null,null,null,null,null,null,null,null,"",null,"",""]
[null,null,null,null,null,null,null,null,"",null,"",""]
[null,null,null,null,null,null,null,null,"",null,"",""]
[null,null,null,null,null,null,null,null,"",null,"",""]
[null,null,null,null,null,null,null,null,"",null,"",""]
[null,null,null,null,null,null,null,null,"",null,"",""]
[null,null,null,null,null,null,null,null,"",null,"",""]
[null,null,null,null,null,null,null,null,"",null,"",""]
[null,null,null,null,null,null,null,null,"",null,"",""]
[null,null,null,null,null,null,null,null,"",null,"",""]
[null,null,null,null,null,null,null,null,"",null,"",""]
[null,null,null,null,null,null,null,null,"",null,"",""]
[null,null,null,null,null,null,null,null,"",null,"",""]
[null,null,null,null,null,null,null,null,"",null,"",""]
[null,null,null,null,null,null,null,null,"",null,"",""]
[null,null,null,null,null,null,null,null,{"$f":"IF(B1610>\"\",G1610*H1610,\"\")","v":""},null,{"$f":"IF(B1610>\"\",I1610*J1610,\"\")","v":""},{"$f":"IF(B1610>\"\",I1610+K1610,\"\")","v":""}]
[null,null,null,null,null,null,null,null,"",null,"",""]
[null,null,null,null,null,null,null,null,"",null,"",""]
[null,null,null,null,null,null,null,null,"",null,"",""]
[null,null,null,null,null,null,null,null,"",null,"",""]
[null,null,null,null,null,null,null,null,"",null,"",""]
[null,null,null,null,null,null,null,null,"",null,"",""]
[null,null,null,null,null,null,null,null,"",null,"",""]
[null,null,null,null,null,null,null,null,"",null,"",""]
[null,null,null,null,null,null,null,null,"",null,"",""]
[null,null,null,null,null,null,null,null,"",null,"",""]
[null,null,null,null,null,null,null,null,"",null,"",""]
[null,null,null,null,null,null,null,null,"",null,"",""]
[null,null,null,null,null,null,null,null,"",null,"",""]
[null,null,null,null,null,null,null,null,"",null,"",""]
[null,null,null,null,null,null,null,null,"",null,"",""]
[null,null,null,null,null,null,null,null,"",null,"",""]
[null,null,null,null,null,null,null,null,"",null,"",""]
[null,null,null,null,null,null,null,null,"",null,"",""]
[null,null,null,null,null,null,null,null,"",null,"",""]
[null,null,null,null,null,null,null,null,"",null,"",""]
[null,null,null,null,null,null,null,null,"",null,"",""]
[null,null,null,null,null,null,null,null,"",null,"",""]
[null,null,null,null,null,null,null,null,"",null,"",""]
[null,null,null,null,null,null,null,null,"",null,"",""]
[null,null,null,null,null,null,null,null,"",null,"",""]
[null,null,null,null,null,null,null,null,"",null,"",""]
[null,null,null,null,null,null,null,null,"",null,"",""]
[null,null,null,null,null,null,null,null,"",null,"",""]
[null,null,null,null,null,null,null,null,"",null,"",""]
[null,null,null,null,null,null,null,null,"",null,"",""]
[null,null,null,null,null,null,null,null,"",null,"",""]
[null,null,null,null,null,null,null,null,"",null,"",""]
[null,null,null,null,null,null,null,null,"",null,"",""]
[null,null,null,null,null,null,null,null,"",null,"",""]
[null,null,null,null,null,null,null,null,"",null,"",""]
[null,null,null,null,null,null,null,null,"",null,"",""]
[null,null,null,null,null,null,null,null,"",null,"",""]
[null,null,null,null,null,null,null,null,"",null,"",""]
[null,null,null,null,null,null,null,null,"",null,"",""]
[null,null,null,null,null,null,null,null,"",null,"",""]
[null,null,null,null,null,null,null,null,"",null,"",""]
[null,null,null,null,null,null,null,null,"",null,"",""]
[null,null,null,null,null,null,null,null,"",null,"",""]
[null,null,null,null,null,null,null,null,"",null,"",""]
[null,null,null,null,null,null,null,null,"",null,"",""]
[null,null,null,null,null,null,null,null,"",null,"",""]
[null,null,null,null,null,null,null,null,"",null,"",""]
[null,null,null,null,null,null,null,null,"",null,"",""]
[null,null,null,null,null,null,null,null,"",null,"",""]
[null,null,null,null,null,null,null,null,"",null,"",""]
[null,null,null,null,null,null,null,null,"",null,"",""]
[null,null,null,null,null,null,null,null,"",null,"",""]
[null,null,null,null,null,null,null,null,"",null,"",""]
[null,null,null,null,null,null,null,null,"",null,"",""]
[null,null,null,null,null,null,null,null,"",null,"",""]
[null,null,null,null,null,null,null,null,"",null,"",""]
[null,null,null,null,null,null,null,null,"",null,"",""]
[null,null,null,null,null,null,null,null,"",null,"",""]
[null,null,null,null,null,null,null,null,"",null,"",""]
[null,null,null,null,null,null,null,null,"",null,"",""]
[null,null,null,null,null,null,null,null,"",null,"",""]
[null,null,null,null,null,null,null,null,"",null,"",""]
[null,null,null,null,null,null,null,null,"",null,"",""]
[null,null,null,null,null,null,null,null,{"$f":"IF(B1674>\"\",G1674*H1674,\"\")","v":""},null,{"$f":"IF(B1674>\"\",I1674*J1674,\"\")","v":""},{"$f":"IF(B1674>\"\",I1674+K1674,\"\")","v":""}]
[null,null,null,null,null,null,null,null,"",null,"",""]
[null,null,null,null,null,null,null,null,"",null,"",""]
[null,null,null,null,null,null,null,null,"",null,"",""]
[null,null,null,null,null,null,null,null,"",null,"",""]
[null,null,null,null,null,null,null,null,"",null,"",""]
[null,null,null,null,null,null,null,null,"",null,"",""]
[null,null,null,null,null,null,null,null,"",null,"",""]
[null,null,null,null,null,null,null,null,"",null,"",""]
[null,null,null,null,null,null,null,null,"",null,"",""]
[null,null,null,null,null,null,null,null,"",null,"",""]
[null,null,null,null,null,null,null,null,"",null,"",""]
[null,null,null,null,null,null,null,null,"",null,"",""]
[null,null,null,null,null,null,null,null,"",null,"",""]
[null,null,null,null,null,null,null,null,"",null,"",""]
[null,null,null,null,null,null,null,null,"",null,"",""]
[null,null,null,null,null,null,null,null,"",null,"",""]
[null,null,null,null,null,null,null,null,"",null,"",""]
[null,null,null,null,null,null,null,null,"",null,"",""]
[null,null,null,null,null,null,null,null,"",null,"",""]
[null,null,null,null,null,null,null,null,"",null,"",""]
[null,null,null,null,null,null,null,null,"",null,"",""]
[null,null,null,null,null,null,null,null,"",null,"",""]
[null,null,null,null,null,null,null,null,"",null,"",""]
[null,null,null,null,null,null,null,null,"",null,"",""]
[null,null,null,null,null,null,null,null,"",null,"",""]
[null,null,null,null,null,null,null,null,"",null,"",""]
[null,null,null,null,null,null,null,null,"",null,"",""]
[null,null,null,null,null,null,null,null,"",null,"",""]
[null,null,null,null,null,null,null,null,"",null,"",""]
[null,null,null,null,null,null,null,null,"",null,"",""]
[null,null,null,null,null,null,null,null,"",null,"",""]
[null,null,null,null,null,null,null,null,"",null,"",""]
[null,null,null,null,null,null,null,null,"",null,"",""]
[null,null,null,null,null,null,null,null,"",null,"",""]
[null,null,null,null,null,null,null,null,"",null,"",""]
[null,null,null,null,null,null,null,null,"",null,"",""]
[null,null,null,null,null,null,null,null,"",null,"",""]
[null,null,null,null,null,null,null,null,"",null,"",""]
[null,null,null,null,null,null,null,null,"",null,"",""]
[null,null,null,null,null,null,null,null,"",null,"",""]
[null,null,null,null,null,null,null,null,"",null,"",""]
[null,null,null,null,null,null,null,null,"",null,"",""]
[null,null,null,null,null,null,null,null,"",null,"",""]
[null,null,null,null,null,null,null,null,"",null,"",""]
[null,null,null,null,null,null,null,null,"",null,"",""]
[null,null,null,null,null,null,null,null,"",null,"",""]
[null,null,null,null,null,null,null,null,"",null,"",""]
[null,null,null,null,null,null,null,null,"",null,"",""]
[null,null,null,null,null,null,null,null,"",null,"",""]
[null,null,null,null,null,null,null,null,"",null,"",""]
[null,null,null,null,null,null,null,null,"",null,"",""]
[null,null,null,null,null,null,null,null,"",null,"",""]
[null,null,null,null,null,null,null,null,"",null,"",""]
[null,null,null,null,null,null,null,null,"",null,"",""]
[null,null,null,null,null,null,null,null,"",null,"",""]
[null,null,null,null,null,null,null,null,"",null,"",""]
[null,null,null,null,null,null,null,null,"",null,"",""]
[null,null,null,null,null,null,null,null,"",null,"",""]
[null,null,null,null,null,null,null,null,"",null,"",""]
[null,null,null,null,null,null,null,null,"",null,"",""]
[null,null,null,null,null,null,null,null,"",null,"",""]
[null,null,null,null,null,null,null,null,"",null,"",""]
[null,null,null,null,null,null,null,null,"",null,"",""]
[null,null,null,null,null,null,null,null,{"$f":"IF(B1738>\"\",G1738*H1738,\"\")","v":""},null,{"$f":"IF(B1738>\"\",I1738*J1738,\"\")","v":""},{"$f":"IF(B1738>\"\",I1738+K1738,\"\")","v":""}]
[null,null,null,null,null,null,null,null,"",null,"",""]
[null,null,null,null,null,null,null,null,"",null,"",""]
[null,null,null,null,null,null,null,null,"",null,"",""]
[null,null,null,null,null,null,null,null,"",null,"",""]
[null,null,null,null,null,null,null,null,"",null,"",""]
[null,null,null,null,null,null,null,null,"",null,"",""]
[null,null,null,null,null,null,null,null,"",null,"",""]
[null,null,null,null,null,null,null,null,"",null,"",""]
[null,null,null,null,null,null,null,null,"",null,"",""]
[null,null,null,null,null,null,null,null,"",null,"",""]
[null,null,null,null,null,null,null,null,"",null,"",""]
[null,null,null,null,null,null,null,null,"",null,"",""]
[null,null,null,null,null,null,null,null,"",null,"",""]
[null,null,null,null,null,null,null,null,"",null,"",""]
[null,null,null,null,null,null,null,null,"",null,"",""]
[null,null,null,null,null,null,null,null,"",null,"",""]
[null,null,null,null,null,null,null,null,"",null,"",""]
[null,null,null,null,null,null,null,null,"",null,"",""]
[null,null,null,null,null,null,null,null,"",null,"",""]
[null,null,null,null,null,null,null,null,"",null,"",""]
[null,null,null,null,null,null,null,null,"",null,"",""]
[null,null,null,null,null,null,null,null,"",null,"",""]
[null,null,null,null,null,null,null,null,"",null,"",""]
[null,null,null,null,null,null,null,null,"",null,"",""]
[null,null,null,null,null,null,null,null,"",null,"",""]
[null,null,null,null,null,null,null,null,"",null,"",""]
[null,null,null,null,null,null,null,null,"",null,"",""]
[null,null,null,null,null,null,null,null,"",null,"",""]
[null,null,null,null,null,null,null,null,"",null,"",""]
[null,null,null,null,null,null,null,null,"",null,"",""]
[null,null,null,null,null,null,null,null,"",null,"",""]
[null,null,null,null,null,null,null,null,"",null,"",""]
[null,null,null,null,null,null,null,null,"",null,"",""]
[null,null,null,null,null,null,null,null,"",null,"",""]
[null,null,null,null,null,null,null,null,"",null,"",""]
[null,null,null,null,null,null,null,null,"",null,"",""]
[null,null,null,null,null,null,null,null,"",null,"",""]
[null,null,null,null,null,null,null,null,"",null,"",""]
[null,null,null,null,null,null,null,null,"",null,"",""]
[null,null,null,null,null,null,null,null,"",null,"",""]
[null,null,null,null,null,null,null,null,"",null,"",""]
[null,null,null,null,null,null,null,null,"",null,"",""]
[null,null,null,null,null,null,null,null,"",null,"",""]
[null,null,null,null,null,null,null,null,"",null,"",""]
[null,null,null,null,null,null,null,null,"",null,"",""]
[null,null,null,null,null,null,null,null,"",null,"",""]
[null,null,null,null,null,null,null,null,"",null,"",""]
[null,null,null,null,null,null,null,null,"",null,"",""]
[null,null,null,null,null,null,null,null,"",null,"",""]
[null,null,null,null,null,null,null,null,"",null,"",""]
[null,null,null,null,null,null,null,null,"",null,"",""]
[null,null,null,null,null,null,null,null,"",null,"",""]
[null,null,null,null,null,null,null,null,"",null,"",""]
[null,null,null,null,null,null,null,null,"",null,"",""]
[null,null,null,null,null,null,null,null,"",null,"",""]
[null,null,null,null,null,null,null,null,"",null,"",""]
[null,null,null,null,null,null,null,null,"",null,"",""]
[null,null,null,null,null,null,null,null,"",null,"",""]
[null,null,null,null,null,null,null,null,"",null,"",""]
[null,null,null,null,null,null,null,null,"",null,"",""]
[null,null,null,null,null,null,null,null,"",null,"",""]
[null,null,null,null,null,null,null,null,"",null,"",""]
[null,null,null,null,null,null,null,null,"",null,"",""]
[null,null,null,null,null,null,null,null,{"$f":"IF(B1802>\"\",G1802*H1802,\"\")","v":""},null,{"$f":"IF(B1802>\"\",I1802*J1802,\"\")","v":""},{"$f":"IF(B1802>\"\",I1802+K1802,\"\")","v":""}]
[null,null,null,null,null,null,null,null,"",null,"",""]
[null,null,null,null,null,null,null,null,"",null,"",""]
[null,null,null,null,null,null,null,null,"",null,"",""]
[null,null,null,null,null,null,null,null,"",null,"",""]
[null,null,null,null,null,null,null,null,"",null,"",""]
[null,null,null,null,null,null,null,null,"",null,"",""]
[null,null,null,null,null,null,null,null,"",null,"",""]
[null,null,null,null,null,null,null,null,"",null,"",""]
[null,null,null,null,null,null,null,null,"",null,"",""]
[null,null,null,null,null,null,null,null,"",null,"",""]
[null,null,null,null,null,null,null,null,"",null,"",""]
[null,null,null,null,null,null,null,null,"",null,"",""]
[null,null,null,null,null,null,null,null,"",null,"",""]
[null,null,null,null,null,null,null,null,"",null,"",""]
[null,null,null,null,null,null,null,null,"",null,"",""]
[null,null,null,null,null,null,null,null,"",null,"",""]
[null,null,null,null,null,null,null,null,"",null,"",""]
[null,null,null,null,null,null,null,null,"",null,"",""]
[null,null,null,null,null,null,null,null,"",null,"",""]
[null,null,null,null,null,null,null,null,"",null,"",""]
[null,null,null,null,null,null,null,null,"",null,"",""]
[null,null,null,null,null,null,null,null,"",null,"",""]
[null,null,null,null,null,null,null,null,"",null,"",""]
[null,null,null,null,null,null,null,null,"",null,"",""]
[null,null,null,null,null,null,null,null,"",null,"",""]
[null,null,null,null,null,null,null,null,"",null,"",""]
[null,null,null,null,null,null,null,null,"",null,"",""]
[null,null,null,null,null,null,null,null,"",null,"",""]
[null,null,null,null,null,null,null,null,"",null,"",""]
[null,null,null,null,null,null,null,null,"",null,"",""]
[null,null,null,null,null,null,null,null,"",null,"",""]
[null,null,null,null,null,null,null,null,"",null,"",""]
[null,null,null,null,null,null,null,null,"",null,"",""]
[null,null,null,null,null,null,null,null,"",null,"",""]
[null,null,null,null,null,null,null,null,"",null,"",""]
[null,null,null,null,null,null,null,null,"",null,"",""]
[null,null,null,null,null,null,null,null,"",null,"",""]
[null,null,null,null,null,null,null,null,"",null,"",""]
[null,null,null,null,null,null,null,null,"",null,"",""]
[null,null,null,null,null,null,null,null,"",null,"",""]
[null,null,null,null,null,null,null,null,"",null,"",""]
[null,null,null,null,null,null,null,null,"",null,"",""]
[null,null,null,null,null,null,null,null,"",null,"",""]
[null,null,null,null,null,null,null,null,"",null,"",""]
[null,null,null,null,null,null,null,null,"",null,"",""]
[null,null,null,null,null,null,null,null,"",null,"",""]
[null,null,null,null,null,null,null,null,"",null,"",""]
[null,null,null,null,null,null,null,null,"",null,"",""]
[null,null,null,null,null,null,null,null,"",null,"",""]
[null,null,null,null,null,null,null,null,"",null,"",""]
[null,null,null,null,null,null,null,null,"",null,"",""]
[null,null,null,null,null,null,null,null,"",null,"",""]
[null,null,null,null,null,null,null,null,"",null,"",""]
[null,null,null,null,null,null,null,null,"",null,"",""]
[null,null,null,null,null,null,null,null,"",null,"",""]
[null,null,null,null,null,null,null,null,"",null,"",""]
[null,null,null,null,null,null,null,null,"",null,"",""]
[null,null,null,null,null,null,null,null,"",null,"",""]
[null,null,null,null,null,null,null,null,"",null,"",""]
[null,null,null,null,null,null,null,null,"",null,"",""]
[null,null,null,null,null,null,null,null,"",null,"",""]
[null,null,null,null,null,null,null,null,"",null,"",""]
[null,null,null,null,null,null,null,null,"",null,"",""]
[null,null,null,null,null,null,null,null,{"$f":"IF(B1866>\"\",G1866*H1866,\"\")","v":""},null,{"$f":"IF(B1866>\"\",I1866*J1866,\"\")","v":""},{"$f":"IF(B1866>\"\",I1866+K1866,\"\")","v":""}]
[null,null,null,null,null,null,null,null,"",null,"",""]
[null,null,null,null,null,null,null,null,"",null,"",""]
[null,null,null,null,null,null,null,null,"",null,"",""]
[null,null,null,null,null,null,null,null,"",null,"",""]
[null,null,null,null,null,null,null,null,"",null,"",""]
[null,null,null,null,null,null,null,null,"",null,"",""]
[null,null,null,null,null,null,null,null,"",null,"",""]
[null,null,null,null,null,null,null,null,"",null,"",""]
[null,null,null,null,null,null,null,null,"",null,"",""]
[null,null,null,null,null,null,null,null,"",null,"",""]
[null,null,null,null,null,null,null,null,"",null,"",""]
[null,null,null,null,null,null,null,null,"",null,"",""]
[null,null,null,null,null,null,null,null,"",null,"",""]
[null,null,null,null,null,null,null,null,"",null,"",""]
[null,null,null,null,null,null,null,null,"",null,"",""]
[null,null,null,null,null,null,null,null,"",null,"",""]
[null,null,null,null,null,null,null,null,"",null,"",""]
[null,null,null,null,null,null,null,null,"",null,"",""]
[null,null,null,null,null,null,null,null,"",null,"",""]
[null,null,null,null,null,null,null,null,"",null,"",""]
[null,null,null,null,null,null,null,null,"",null,"",""]
[null,null,null,null,null,null,null,null,"",null,"",""]
[null,null,null,null,null,null,null,null,"",null,"",""]
[null,null,null,null,null,null,null,null,"",null,"",""]
[null,null,null,null,null,null,null,null,"",null,"",""]
[null,null,null,null,null,null,null,null,"",null,"",""]
[null,null,null,null,null,null,null,null,"",null,"",""]
[null,null,null,null,null,null,null,null,"",null,"",""]
[null,null,null,null,null,null,null,null,"",null,"",""]
[null,null,null,null,null,null,null,null,"",null,"",""]
[null,null,null,null,null,null,null,null,"",null,"",""]
[null,null,null,null,null,null,null,null,"",null,"",""]
[null,null,null,null,null,null,null,null,"",null,"",""]
[null,null,null,null,null,null,null,null,"",null,"",""]
[null,null,null,null,null,null,null,null,"",null,"",""]
[null,null,null,null,null,null,null,null,"",null,"",""]
[null,null,null,null,null,null,null,null,"",null,"",""]
[null,null,null,null,null,null,null,null,"",null,"",""]
[null,null,null,null,null,null,null,null,"",null,"",""]
[null,null,null,null,null,null,null,null,"",null,"",""]
[null,null,null,null,null,null,null,null,"",null,"",""]
[null,null,null,null,null,null,null,null,"",null,"",""]
[null,null,null,null,null,null,null,null,"",null,"",""]
[null,null,null,null,null,null,null,null,"",null,"",""]
[null,null,null,null,null,null,null,null,"",null,"",""]
[null,null,null,null,null,null,null,null,"",null,"",""]
[null,null,null,null,null,null,null,null,"",null,"",""]
[null,null,null,null,null,null,null,null,"",null,"",""]
[null,null,null,null,null,null,null,null,"",null,"",""]
[null,null,null,null,null,null,null,null,"",null,"",""]
[null,null,null,null,null,null,null,null,"",null,"",""]
[null,null,null,null,null,null,null,null,"",null,"",""]
[null,null,null,null,null,null,null,null,"",null,"",""]
[null,null,null,null,null,null,null,null,"",null,"",""]
[null,null,null,null,null,null,null,null,"",null,"",""]
[null,null,null,null,null,null,null,null,"",null,"",""]
[null,null,null,null,null,null,null,null,"",null,"",""]
[null,null,null,null,null,null,null,null,"",null,"",""]
[null,null,null,null,null,null,null,null,"",null,"",""]
[null,null,null,null,null,null,null,null,"",null,"",""]
[null,null,null,null,null,null,null,null,"",null,"",""]
[null,null,null,null,null,null,null,null,"",null,"",""]
[null,null,null,null,null,null,null,null,"",null,"",""]
[null,null,null,null,null,null,null,null,{"$f":"IF(B1930>\"\",G1930*H1930,\"\")","v":""},null,{"$f":"IF(B1930>\"\",I1930*J1930,\"\")","v":""},{"$f":"IF(B1930>\"\",I1930+K1930,\"\")","v":""}]
[null,null,null,null,null,null,null,null,"",null,"",""]
[null,null,null,null,null,null,null,null,"",null,"",""]
[null,null,null,null,null,null,null,null,"",null,"",""]
[null,null,null,null,null,null,null,null,"",null,"",""]
[null,null,null,null,null,null,null,null,"",null,"",""]
[null,null,null,null,null,null,null,null,"",null,"",""]
[null,null,null,null,null,null,null,null,"",null,"",""]
[null,null,null,null,null,null,null,null,"",null,"",""]
[null,null,null,null,null,null,null,null,"",null,"",""]
[null,null,null,null,null,null,null,null,"",null,"",""]
[null,null,null,null,null,null,null,null,"",null,"",""]
[null,null,null,null,null,null,null,null,"",null,"",""]
[null,null,null,null,null,null,null,null,"",null,"",""]
[null,null,null,null,null,null,null,null,"",null,"",""]
[null,null,null,null,null,null,null,null,"",null,"",""]
[null,null,null,null,null,null,null,null,"",null,"",""]
[null,null,null,null,null,null,null,null,"",null,"",""]
[null,null,null,null,null,null,null,null,"",null,"",""]
[null,null,null,null,null,null,null,null,"",null,"",""]
[null,null,null,null,null,null,null,null,"",null,"",""]
[null,null,null,null,null,null,null,null,"",null,"",""]
[null,null,null,null,null,null,null,null,"",null,"",""]
[null,null,null,null,null,null,null,null,"",null,"",""]
[null,null,null,null,null,null,null,null,"",null,"",""]
[null,null,null,null,null,null,null,null,"",null,"",""]
[null,null,null,null,null,null,null,null,"",null,"",""]
[null,null,null,null,null,null,null,null,"",null,"",""]
[null,null,null,null,null,null,null,null,"",null,"",""]
[null,null,null,null,null,null,null,null,"",null,"",""]
[null,null,null,null,null,null,null,null,"",null,"",""]
[null,null,null,null,null,null,null,null,"",null,"",""]
[null,null,null,null,null,null,null,null,"",null,"",""]
[null,null,null,null,null,null,null,null,"",null,"",""]
[null,null,null,null,null,null,null,null,"",null,"",""]
[null,null,null,null,null,null,null,null,"",null,"",""]
[null,null,null,null,null,null,null,null,"",null,"",""]
[null,null,null,null,null,null,null,null,"",null,"",""]
[null,null,null,null,null,null,null,null,"",null,"",""]
[null,null,null,null,null,null,null,null,"",null,"",""]
[null,null,null,null,null,null,null,null,"",null,"",""]
[null,null,null,null,null,null,null,null,"",null,"",""]
[null,null,null,null,null,null,null,null,"",null,"",""]
[null,null,null,null,null,null,null,null,"",null,"",""]
[null,null,null,null,null,null,null,null,"",null,"",""]
[null,null,null,null,null,null,null,null,"",null,"",""]
[null,null,null,null,null,null,null,null,"",null,"",""]
[null,null,null,null,null,null,null,null,"",null,"",""]
[null,null,null,null,null,null,null,null,"",null,"",""]
[null,null,null,null,null,null,null,null,"",null,"",""]
[null,null,null,null,null,null,null,null,"",null,"",""]
[null,null,null,null,null,null,null,null,"",null,"",""]
[null,null,null,null,null,null,null,null,"",null,"",""]
[null,null,null,null,null,null,null,null,"",null,"",""]
[null,null,null,null,null,null,null,null,"",null,"",""]
[null,null,null,null,null,null,null,null,"",null,"",""]
[null,null,null,null,null,null,null,null,"",null,"",""]
[null,null,null,null,null,null,null,null,"",null,"",""]
[null,null,null,null,null,null,null,null,"",null,"",""]
[null,null,null,null,null,null,null,null,"",null,"",""]
[null,null,null,null,null,null,null,null,"",null,"",""]
[null,null,null,null,null,null,null,null,"",null,"",""]
[null,null,null,null,null,null,null,null,"",null,"",""]
[null,null,null,null,null,null,null,null,"",null,"",""]
[null,null,null,null,null,null,null,null,{"$f":"IF(B1994>\"\",G1994*H1994,\"\")","v":""},null,{"$f":"IF(B1994>\"\",I1994*J1994,\"\")","v":""},{"$f":"IF(B1994>\"\",I1994+K1994,\"\")","v":""}]
[null,null,null,null,null,null,null,null,"",null,"",""]
[null,null,null,null,null,null,null,null,"",null,"",""]
[null,null,null,null,null,null,null,null,"",null,"",""]
[null,null,null,null,null,null,null,null,"",null,"",""]
[null,null,null,null,null,null,null,null,"",null,"",""]
[null,null,null,null,null,null,null,null,"",null,"",""]
[null,null,null,null,null,null,null,null,"",null,"",""]
[null,null,null,null,null,null,null,null,"",null,"",""]
[null,null,null,null,null,null,null,null,"",null,"",""]
[null,null,null,null,null,null,null,null,"",null,"",""]
[null,null,null,null,null,null,null,null,"",null,"",""]
[null,null,null,null,null,null,null,null,"",null,"",""]
[null,null,null,null,null,null,null,null,"",null,"",""]
[null,null,null,null,null,null,null,null,"",null,"",""]
[null,null,null,null,null,null,null,null,"",null,"",""]
[null,null,null,null,null,null,null,null,"",null,"",""]
[null,null,null,null,null,null,null,null,"",null,"",""]
[null,null,null,null,null,null,null,null,"",null,"",""]
[null,null,null,null,null,null,null,null,"",null,"",""]
[null,null,null,null,null,null,null,null,"",null,"",""]
[null,null,null,null,null,null,null,null,"",null,"",""]
[null,null,null,null,null,null,null,null,"",null,"",""]
[null,null,null,null,null,null,null,null,"",null,"",""]
[null,null,null,null,null,null,null,null,"",null,"",""]
[null,null,null,null,null,null,null,null,"",null,"",""]
[null,null,null,null,null,null,null,null,"",null,"",""]
[null,null,null,null,null,null,null,null,"",null,"",""]
[null,null,null,null,null,null,null,null,"",null,"",""]
[null,null,null,null,null,null,null,null,"",null,"",""]
[null,null,null,null,null,null,null,null,"",null,"",""]
[null,null,null,null,null,null,null,null,"",null,"",""]
[null,null,null,null,null,null,null,null,"",null,"",""]
[null,null,null,null,null,null,null,null,"",null,"",""]
[null,null,null,null,null,null,null,null,"",null,"",""]
[null,null,null,null,null,null,null,null,"",null,"",""]
[null,null,null,null,null,null,null,null,"",null,"",""]
[null,null,null,null,null,null,null,null,"",null,"",""]
[null,null,null,null,null,null,null,null,"",null,"",""]
[null,null,null,null,null,null,null,null,"",null,"",""]
[null,null,null,null,null,null,null,null,"",null,"",""]
[null,null,null,null,null,null,null,null,"",null,"",""]
[null,null,null,null,null,null,null,null,"",null,"",""]
[null,null,null,null,null,null,null,null,"",null,"",""]
[null,null,null,null,null,null,null,null,"",null,"",""]
[null,null,null,null,null,null,null,null,"",null,"",""]
[null,null,null,null,null,null,null,null,"",null,"",""]
[null,null,null,null,null,null,null,null,"",null,"",""]
[null,null,null,null,null,null,null,null,"",null,"",""]
[null,null,null,null,null,null,null,null,"",null,"",""]
[null,null,null,null,null,null,null,null,"",null,"",""]
[null,null,null,null,null,null,null,null,"",null,"",""]
[null,null,null,null,null,null,null,null,"",null,"",""]
[null,null,null,null,null,null,null,null,"",null,"",""]
[null,null,null,null,null,null,null,null,"",null,"",""]
[null,null,null,null,null,null,null,null,"",null,"",""]

{"sheet":"bill","index":1,"n_rows":7,"n_cols":14,"rows_kept":7,"cut":false,"hidden":false,"merged":[]}
[]
[null,null,null,null,null,null,null,null,null,null,null,"from date"]
[null,null,null,null,null,null,null,null,null,null,null,"to date"]
[null,null,null,null,null,null,null,null,null,null,null,"     الشركة"]
[]
["م","Bilnumret","företag ","tjänsten","DATUM","Column1","Antal"," Priset ","Totalt ","MOMS",null,"den totala","Column3","ملاحظـــات"]
["*","رقم السيارة","الشركة","الخدمة","التاريخ",null,"العدد",null,"المجموع","Procent","värde","المجموع"]